Cogmind - Beta 16 @@@ ROGUE MODE // 2025.11.14 @ 04:21:07 Player: Naughtyusername Result: Destroyed by G-73 Enforcer with Phase Gun Performance ------------- Evolutions (8) 4000 Regions Visited (28) 5600 Robots Destroyed (358) 1790 Value Destroyed (14314) 14314 Prototype IDs (63) 1260 Alien Tech Used (0) 0 Bonus (9460) 9460 TOTAL SCORE: 36424 Bonus ------- High Alert Combat Kills 158 Follower Combat Kills 2489 Forged Quantum Companion 1000 Registered with UFD 300 Met Optimus in HQ 500 Met Imprinter 300 Met Warlord at Base 500 MAIN.C Attacked Warlord 500 Warlord Defense Kills 1582 Built Enhanced Grunts 300 A7 Reached Mainframe 300 Met R17 at Cetus 500 Met R17 at Research 2000 Friendly Fire -969 Cogmind --------- Core Integrity 0/1450 Matter 280/300 Energy 18/100 System Corruption 0% Temperature Cool (0) Movement Core (50) Location -2/Research Parts ------- > --- POWER (3) -------- (None) > --- PROPULSION (8) --- (None) > --- UTILITY (9) ------ Enhanced Optical Array Transport Network Coupler Jamming Amplifier > --- WEAPON (3) ------- Quantum Companion (fused) > --- INVENTORY (5) ---- Advanced Heat Sink Experimental EM Disruption Field Omega Cannon Peak State ------------ > --- POWER ------------ Vortex Chain Reactor > --- PROPULSION ------- Combat Antigrav System Xenon Bombardment Thruster Xenon Bombardment Thruster Impulse Thruster Array Impulse Thruster Array > --- UTILITY ---------- Advanced Heat Sink Quantum Shading Machine Enhanced Optical Array Advanced Signal Interpreter Advanced Melee Analysis Suite Jamming Amplifier Centrium Medium Armor Plating Experimental Shield Generator > --- WEAPON ----------- Omega Cannon Quantum Companion > --- INVENTORY -------- Antigrav System Improved Phase Shifter Experimental EM Disruption Field Vortex Lance Vortex Lance [Rating: 163] Favorites ----------- Power Cooled Ion Engine Engine Cooled Ion Engine Power Core Neutrino Core Reactor Light Antimatter Reactor Propulsion Light Treads Treads Light Treads Leg Myomer Leg Wheel Compact Wheel Hover Unit Combat Linear Gravjet Flight Unit Biomechanical Wings Utility Enhanced Optical Array Device Cooling System Storage High-capacity Storage Unit Processor Enhanced Optical Array Hackware Hacking Suite Protection Light Armor Plating Weapon Improved Assault Rifle Energy Gun Heavy Quantum Rifle Ballistic Gun Improved Assault Rifle Ballistic Cannon Omega Cannon Launcher Vortex Catalyst Activator Special Weapon Plasma Cutter Impact Weapon Heavy Hammer Slashing Weapon Companion Sword Piercing Weapon Vortex Lance Special Melee Weapon Datajack Build | -11 -10 -10 -9 -9 -9 -9 -6 -6 -6 -6 -6 -6 -5 -5 -5 -5 -5 -5 -5 -4 -4 -4 -4 -4 -4 -3 -3 -2 ------- Run | Yrd Mat Min Mat Sto Rec Scr Fac Was Fac Low Low Zio Pro Fac Was Fac Upp Upp War Pro Fac Ext Cet Arc Hub Res Tes Res Slots Evolved 16 | . . . 2 . . . 6 . . . . . . 2 . . . . . . 2 . . . . 2 . 2 Power 2 | . . . . . . . . . . . . . . . . . . . . . 1 . . . . . . 1 Propulsion 6 | . . . . . . . 3 . . . . . . . . . . . . . 1 . . . . 2 . . Utility 7 | . . . 1 . . . 3 . . . . . . 2 . . . . . . . . . . . . . 1 Weapon 1 | . . . 1 . . . . . . . . . . . . . . . . . . . . . . . . . Parts Attached 268 | 7 7 8 20 9 4 1 12 10 27 4 . 2 1 10 4 6 2 . 23 3 7 19 7 2 21 32 15 5 Power 31 | 1 . 2 1 3 . . . 2 2 . . . . 1 2 . . . 3 . 2 3 2 . 3 3 . 1 Engine 12 | 1 . 2 1 3 . . . . 1 . . . . 1 1 . . . 1 . . . . . . . . 1 Core 6 | . . . . . . . . 2 1 . . . . . . . . . . . . 3 . . . . . . Reactor 13 | . . . . . . . . . . . . . . . 1 . . . 2 . 2 . 2 . 3 3 . . Propulsion 99 | 2 . 2 7 4 1 . 5 5 9 . . . 1 2 . 2 . . 9 1 2 9 3 . 10 15 8 2 Treads 30 | 2 . 2 7 4 1 . 5 . . . . . . . . . . . . . . 6 3 . . . . . Leg 16 | . . . . . . . . . . . . . . . . . . . 2 . . . . . 9 3 . 2 Wheel 3 | . . . . . . . . . . . . . . . . . . . . . . 3 . . . . . . Hover 20 | . . . . . . . . . . . . . . . . . . . 7 1 2 . . . . 3 7 . Flight 30 | . . . . . . . . 5 9 . . . 1 2 . 2 . . . . . . . . 1 9 1 . Utility 105 | 2 3 1 4 2 1 . 7 3 14 4 . . . 7 2 3 2 . 8 2 3 7 2 2 8 13 3 2 Device 44 | 1 1 . 1 . . . 1 2 6 3 . . . 4 1 2 . . 2 . 2 4 . 1 5 7 1 . Storage 6 | 1 1 . . 1 . . . . 2 . . . . . . . . . . . . . . . 1 . . . Processor 22 | . . . . . . . 4 1 3 . . . . 1 . . 2 . 2 . 1 . . . 1 4 1 2 Hackware 4 | . . . . . . . 1 . . . . . . 1 . . . . 1 . . . . . . 1 . . Protection 29 | . 1 1 3 1 1 . 1 . 3 1 . . . 1 1 1 . . 3 2 . 3 2 1 1 1 1 . Artifact . | . . . . . . . . . . . . . . . . . . . . . . . . . . . . . Weapon 33 | 2 4 3 8 . 2 1 . . 2 . . 2 . . . 1 . . 3 . . . . . . 1 4 . Energy Gun 1 | . . . . . . . . . . . . . . . . . . . . . . . . . . . 1 . Energy Cannon . | . . . . . . . . . . . . . . . . . . . . . . . . . . . . . Ballistic Gun 14 | 2 2 1 8 . . . . . . . . . . . . . . . . . . . . . . . 1 . Ballistic Cannon 1 | . . . . . . . . . . . . . . . . . . . . . . . . . . . 1 . Launcher 5 | . . 2 . . . . . . 1 . . . . . . 1 . . 1 . . . . . . . . . Special Weapon 3 | . . . . . 1 . . . . . . 2 . . . . . . . . . . . . . . . . Impact Weapon 2 | . 2 . . . . . . . . . . . . . . . . . . . . . . . . . . . Slashing Weapon 4 | . . . . . . 1 . . 1 . . . . . . . . . . . . . . . . 1 1 . Piercing Weapon 2 | . . . . . . . . . . . . . . . . . . . 2 . . . . . . . . . Special Melee Weapon 1 | . . . . . 1 . . . . . . . . . . . . . . . . . . . . . . . Unidentified Prototypes 41 | . . . 2 . . 1 2 2 3 . . 1 . 3 . 1 . . 8 1 1 . 1 . 5 5 5 . Parts Lost 88 | . . 3 1 3 . . 1 . 1 1 . . . 4 . 4 . 6 1 1 4 14 2 2 7 12 14 7 Power 16 | . . 2 . 1 . . . . 1 . . . . . . 1 . 1 . . 1 3 1 1 1 1 1 1 Propulsion 40 | . . 1 1 1 . . . . . 1 . . . 1 . 1 . 3 . . 2 7 1 . 3 6 9 3 Utility 30 | . . . . 1 . . 1 . . . . . . 3 . 2 . 2 1 1 1 4 . 1 3 5 4 1 Weapon 2 | . . . . . . . . . . . . . . . . . . . . . . . . . . . . 2 Highest Loss Streak 12 | . . 2 1 3 . . 1 . 1 1 . . . 3 . 3 . 3 1 1 1 7 2 2 3 5 12 3 To Critical Strikes 2 | . . . . . . . . . . . . . . . . . . . . . . . 1 . 1 . . . Average Backups 10 | . 7 14 14 16 19 19 19 14 9 8 5 5 5 4 5 4 3 4 4 3 3 3 4 4 4 3 3 3 Power . | . 1 . 1 1 1 1 1 . . . . . . . 1 . . . . 1 1 1 1 1 1 . . . Propulsion 2 | . . 2 3 4 6 6 6 3 . . . . . . 1 . . . . 1 . . . . . . . . Utility 3 | . 3 5 3 2 3 3 4 5 5 5 3 3 3 1 1 1 2 3 2 1 2 2 3 3 3 2 2 2 Weapon 3 | . 2 6 5 6 7 7 3 1 1 1 1 1 1 . 1 1 1 1 1 . . . . . . . 1 1 Tool/Special . | . . . . . . . . . . . . . . . . . . . . . . . . . . . . . Unused Backups 32 | . . . 7 4 1 2 4 . 7 2 . . . . 1 . . . 1 . 2 . . . . . . 1 Power 2 | . . . . 1 1 . . . . . . . . . . . . . . . . . . . . . . . Propulsion 11 | . . . 4 2 . . 1 . 2 . . . . . . . . . . . 2 . . . . . . . Utility 9 | . . . . 1 . 1 . . 4 1 . . . . . . . . 1 . . . . . . . . 1 Weapon 8 | . . . 3 . . 1 3 . . 1 . . . . . . . . . . . . . . . . . . Tool/Special 2 | . . . . . . . . . 1 . . . . . 1 . . . . . . . . . . . . . Average Slot Usage (%) 90 | . 98 99 99 99 100 100 88 82 87 82 80 90 82 80 82 81 81 68 81 95 98 78 84 75 86 87 79 27 Engine 6 | . 14 13 11 10 11 11 6 2 . 1 6 6 6 5 4 . 5 2 1 . . . . . . . . . Reactor 1 | . . . . . . . . . . . . . . . . 4 . . 2 5 9 3 8 7 9 7 3 . Treads 12 | . 28 27 22 22 22 22 32 6 . . . . . . . . . . . . . 9 16 15 4 . . . Leg 1 | . . . . . . . . . . . . . . . . . . . . . . . . . 19 13 . 1 Hover 3 | . . . . . . . . . . . . . . . . . . . 16 29 30 9 . . . . 18 2 Flight 7 | . . . . . . . . 26 33 29 26 26 28 23 23 23 23 15 2 . . . . . . 15 8 . Device 10 | . 4 9 11 11 11 11 1 5 6 8 13 13 13 16 21 20 13 13 10 11 10 5 15 10 11 8 12 2 Storage 5 | . 14 14 11 11 11 11 6 5 5 4 . . . . . . . . . . . . . . . . . . Processor 10 | . . . . . . . 18 20 22 20 20 20 20 17 17 17 26 27 23 23 20 15 15 12 11 17 15 9 Protection 8 | . 7 4 10 11 11 11 9 3 3 5 6 6 6 7 6 7 5 2 3 6 10 9 10 13 11 6 3 . Ballistic Gun 9 | . 27 27 32 32 22 . . . . . . . . . . . . . . . . . . . . . 1 . Special Weapon 2 | . . . . . 3 11 1 . . . . 10 . . . . . . . . . . . . . . . . Impact Weapon 1 | . . . . . 3 6 . . . . . . . . . . . . . . . . . . . . . . Slashing Weapon 3 | . . . . . . 4 6 6 7 6 6 6 6 5 5 5 5 5 5 5 5 5 5 5 5 4 4 4 Piercing Weapon 2 | . . . . . . . . . . . . . . . . . . . 6 11 10 10 10 10 10 8 5 6 Special Melee Weapon 1 | . . . . . 3 11 1 . . . . . . . . . . . . . . . . . . . . . Peak Build Rating 163 | 7 11 12 21 22 22 22 43 58 81 70 67 81 74 85 87 95 88 84 120 130 148 137 154 154 151 140 163 65 Average Rating 59 | 5 9 10 18 21 20 19 40 50 69 67 67 78 67 77 83 89 84 67 86 122 143 108 144 144 131 121 151 54 On Entrance 71 | . 7 11 11 21 22 17 22 43 53 70 67 67 81 69 82 87 83 84 50 117 130 137 122 154 141 126 130 62 Avg Prop Armor Cover (%) 5 | . . . . . 6 . . . . . . . . . . . . 5 5 . 4 6 . . 7 4 4 35 Naked Turns . | . . . . . . . . . . . . . . . . . . . . . . . . . . . . . Heaviest Build 80 | 12 32 32 46 66 66 59 60 58 35 25 24 40 32 29 33 32 20 19 53 46 57 63 68 80 73 54 78 13 Greatest Support 240 | 40 40 40 40 40 40 40 108 108 42 30 24 24 28 34 34 35 35 35 69 69 83 200 240 240 240 166 112 60 Greatest Overweight (x) 3 | . . 1 2 1 3 1 . 1 1 1 . 1 1 . . . . 1 2 . 1 1 . . . 1 2 3 Average Overweight (x) . | . . . . 1 2 1 . . . . . . . . . . . . . . . . . . . . . . Largest Inventory Capacity 20 | 8 15 15 15 20 20 20 20 20 15 10 5 5 5 5 5 5 5 5 5 5 5 5 5 5 5 5 5 5 Average Capacity 11 | 7 12 15 15 17 20 20 20 15 9 8 5 5 5 5 5 5 5 5 5 5 5 5 5 5 5 5 5 5 Most Carried 20 | 1 13 15 15 20 20 20 20 20 15 10 5 5 5 5 5 5 4 5 5 5 5 5 5 5 5 5 5 4 Average Carried 10 | . 7 14 14 16 19 19 19 14 9 8 5 5 5 4 4 4 3 4 4 4 4 4 4 5 5 4 4 4 Final Capacity 20 | 8 15 15 15 20 20 20 20 15 10 5 5 5 5 5 5 5 5 5 5 5 5 5 5 5 5 5 5 5 Final Carried 20 | 1 13 15 15 20 18 20 20 15 10 5 5 5 5 5 5 2 4 5 5 5 5 5 5 5 5 4 4 4 Class Distribution -------------------- 19% | Scavenger-Gladiator 16% | Commander-Mutant 11% | Scout 10% | Tank 9% | Mutant 6% | Scavenger-Mutant 6% | Commander-Tank 5% | Sprinter 4% | Ninja 3% | Assassin 3% | Scavenger-Tank Dominant Class ---------------- Mutant | -10/Materials Scavenger-Mutant | -10/Mines Tank | -9/Materials Tank | -9/Storage Commander-Tank | -9/Recycling Commander-Mutant | -9/Scraptown Scavenger-Mutant | -6/Factory Sprinter | -6/Waste Scout | -6/Factory Scout | -6/Lower Caves Scout | -6/Lower Caves Assassin | -6/Zion Scout | -5/Proximity Caves Ninja | -5/Factory Sprinter | -5/Waste Ninja | -5/Factory Scout | -5/Upper Caves Scout | -5/Upper Caves Scavenger-Gladiator | -5/Warlord Scavenger-Gladiator | -4/Proximity Caves Scavenger-Gladiator | -4/Factory Scavenger-Gladiator | -4/Extension Scavenger-Gladiator | -4/Cetus Commander-Gladiator | -4/Archives Scavenger-Gladiator | -4/Hub_04(d) Scavenger-Gladiator | -3/Research Scavenger-Gladiator | -3/Testing Mutant | -2/Research Resources | -11 -10 -10 -9 -9 -9 -9 -6 -6 -6 -6 -6 -6 -5 -5 -5 -5 -5 -5 -5 -4 -4 -4 -4 -4 -4 -3 -3 -2 ----------- Run | Yrd Mat Min Mat Sto Rec Scr Fac Was Fac Low Low Zio Pro Fac Was Fac Upp Upp War Pro Fac Ext Cet Arc Hub Res Tes Res Matter Collected 6279 | 326 224 354 868 788 153 81 160 120 427 160 . 20 90 313 30 220 61 . 288 34 125 199 135 20 299 356 410 18 Remotely . | . . . . . . . . . . . . . . . . . . . . . . . . . . . . . Salvage Created 20044 | 157 285 225 1263 1413 329 . 192 41 2153 527 421 . 428 1531 . 935 476 211 292 429 1124 884 338 . 1353 1166 2743 1128 Parts 874 | 16 20 20 85 87 13 . 10 . 83 20 18 . 29 68 . 31 13 8 8 9 62 31 14 . 35 57 99 38 Haulers Intercepted 34 | . 1 . 4 6 . . . . 5 . . . . 7 . 4 . . . . 1 1 . . 4 . . 1 Recyclers Shooed 2 | . 1 . . . . . . . . . . . . . . . . . . . . . . . . 1 . . Parts Field Recycled . | . . . . . . . . . . . . . . . . . . . . . . . . . . . . . Retrieved Matter . | . . . . . . . . . . . . . . . . . . . . . . . . . . . . . Parts Self-Destructed 70 | . . . . . . . . . . 19 . . 28 . . . 8 6 . 9 . . . . . . . . Prevented 3 | . . . . . . . . . . . 1 . . . . . 2 . . . . . . . . . . . Parts Restored . | . . . . . . . . . . . . . . . . . . . . . . . . . . . . . Kills | -11 -10 -10 -9 -9 -9 -9 -6 -6 -6 -6 -6 -6 -5 -5 -5 -5 -5 -5 -5 -4 -4 -4 -4 -4 -4 -3 -3 -2 ------- Run | Yrd Mat Min Mat Sto Rec Scr Fac Was Fac Low Low Zio Pro Fac Was Fac Upp Upp War Pro Fac Ext Cet Arc Hub Res Tes Res Combat Hostiles Destroyed 235 | . 7 9 30 19 4 . 3 . 17 7 . . 11 9 . 8 3 3 11 4 15 8 5 . 10 15 23 14 Melee 124 | . . . . . . . 3 . 17 7 . . 3 2 . 8 3 3 2 4 15 5 3 . 7 12 19 11 Guns 60 | . 7 4 26 19 4 . . . . . . . . . . . . . . . . . . . . . . . Cannons 10 | . . . . . . . . . . . . . 1 . . . . . . . . 2 1 . 3 . . 3 AOE 29 | . . 5 4 . . . . . . . . . 7 4 . . . . 9 . . . . . . . . . Classes Destroyed 24 | 3 3 2 2 . 3 . . 1 1 1 1 . . . . 1 . . 3 . 1 . . . . . 2 . Worker 24 | 2 . . 1 1 . . . . 10 . . . . 4 . 1 . . . . 1 . . . 2 . 2 . Builder 11 | . . . . . 1 . . . 1 . . . . 2 . 1 . . . . 2 . . . 1 1 2 . Tunneler 6 | 3 1 . . . . . . . . . . . . . . . . . . . . . . . 1 . . 1 Hauler 34 | . 1 . 4 6 . . . . 5 . . . . 7 . 4 . . . . 1 1 . . 4 . . 1 Recycler 15 | 1 . 1 . 1 . . . . 2 . . . . 2 . . . . . . . . . . 1 1 6 . Minesweeper 2 | . . . . . . . . . . 1 . . . . . . . . . 1 . . . . . . . . Mechanic 1 | . . . . . . . . . . . . . . . . . . . . . 1 . . . . . . . Operator 9 | . . . 1 1 . . . . 2 . . . . 1 . . . . . . . 1 . . 1 . 2 . Watcher 20 | . . . 2 2 . . . . 6 . . . . 3 . 1 . . . . . 3 . . . 1 1 1 Swarmer 52 | . 2 6 10 . . . . . 1 3 . . 6 4 . . 3 . . 4 3 . . . . 5 . 5 Grunt 101 | . 5 . 13 7 1 . . . 13 3 . . 3 4 . 6 . . 5 . 3 3 . . 6 7 14 8 Brawler 3 | . . . . . 1 . . . . . . . . . . . . . 2 . . . . . . . . . Duelist 3 | . . . . . . . . . 1 . . . 1 . . . . . . . . . . . . . 1 . Protector 1 | . . . . . . . . . . . . . . . . . . . 1 . . . . . . . . . Researcher 1 | . . . . . . . . . . . . . . . . . . . . . . . . . . . 1 . Sentry 36 | . . 2 7 12 . . 2 . . . . . . . . 1 . 1 . . 2 5 . . . 3 . 1 Hunter 7 | . . . . . . . . . . . . . . . . 1 . . . . 2 . . . 4 . . . Programmer 21 | . . . . . 2 . 1 . 2 1 . . 1 1 . . . 2 . . 5 . . . . . 6 . Behemoth 1 | . . . . . . . . . . . . . . . . . . . 1 . . . . . . . . . Cetus Guard 5 | . . . . . . . . . . . . . . . . . . . . . . . 5 . . . . . Combat Programmer 1 | . . . . . . . . . . . . . . . . . . . . . . . . . . . 1 . Executioner 2 | . . . . . . . . . . . . . . . . . . . 2 . . . . . . . . . Alpha 7 1 | . . . . . . . . . . . . . . . . . . . . . . . . . . . 1 . Decomposer 8 | . . . . . . . . . . 3 4 . . . . . . 1 . . . . . . . . . . Packrat 5 | . . . . . . . . . . 2 2 . . . . . 1 . . . . . . . . . . . Samaritan 11 | . . . . . . . . . . . 4 . 3 . . . 3 . . 1 . . . . . . . . Assembled 1 | . . 1 . . . . . . . . . . . . . . . . . . . . . . . . . . Martyr 1 | . . . . . . . . 1 . . . . . . . . . . . . . . . . . . . . Best Kill Streak 9 | 3 2 3 5 5 3 . 1 . 8 3 . . 8 6 . 5 2 2 9 4 5 3 3 . 5 8 6 6 Combat Bots Only 9 | . 2 3 3 4 3 . 1 . 4 3 . . 8 4 . 3 2 2 9 4 4 2 3 . 4 7 6 6 Max Kills in Single Turn 4 | 1 1 3 2 2 2 . 1 1 1 1 1 . 4 3 . 1 1 1 3 1 2 1 1 . 1 2 1 1 Gunslinging 1 | . . . 1 1 1 . . . . . . . . . . . . . . . . . . . . . . . Exploded 4 | . . 3 2 . . . . . . . . . 4 3 . . . . 3 . . . . . . . . . Melee 2 | . . . . . . . 1 . 1 1 . . 1 1 . 1 1 1 1 1 2 1 1 . 1 2 1 1 Uniques/NPCs Destroyed . | . . . . . . . . . . . . . . . . . . . . . . . . . . . . . Combat | -11 -10 -10 -9 -9 -9 -9 -6 -6 -6 -6 -6 -6 -5 -5 -5 -5 -5 -5 -5 -4 -4 -4 -4 -4 -4 -3 -3 -2 -------- Run | Yrd Mat Min Mat Sto Rec Scr Fac Was Fac Low Low Zio Pro Fac Was Fac Upp Upp War Pro Fac Ext Cet Arc Hub Res Tes Res Hostile Shots Fired 1575 | . 25 54 78 92 15 . 74 . 54 25 . . 6 51 . 45 10 22 25 36 110 135 79 31 129 97 225 157 Missed 493 | . 6 12 26 27 3 . 24 . 25 13 . . 2 28 . 13 4 3 6 9 34 41 20 7 45 33 75 37 Deflected 19 | . . . . . . . . . . . . . . . . . . . . . 3 1 3 1 1 2 4 4 Hits 1082 | . 19 42 52 65 12 . 50 . 29 12 . . 4 23 . 32 6 19 19 27 76 94 59 24 84 64 150 120 Melee 11 | . . 5 . . . . . . . . . . . . . . . . . . . . . . . 1 5 . Projectile 1071 | . 19 37 52 65 12 . 50 . 29 12 . . 4 23 . 32 6 19 19 27 76 94 59 24 84 63 145 120 AOE 2 | . . . . . . . . . . . . . . . . . . . . . . . . . . . 2 . Critical Strikes 62 | . . 1 . 2 1 . . . 1 . . . . 1 . 1 . 2 2 . 4 5 3 . 5 4 25 5 Actively Blocked 1 | . . . . . . . . . . . . . . . . . . . . . 1 . . . . . . . Part Disruptions 2 | . . . . . 1 . . . . . . . . . . . . . . . . . . . . . 1 . Damage Taken 20872 | . 224 623 674 935 200 . 400 . 545 230 6 . 93 846 . 713 122 453 512 297 1264 1843 1402 672 1747 1521 2864 2686 Core 4228 | . 56 86 86 96 . . 38 . 215 111 6 . . 219 . 48 14 104 94 66 256 446 92 . 54 190 483 1468 Absorbed by Shields 950 | . . . . . . . . . . . . . . . . . . . . . . 116 180 . . . 654 . Reduced by Siege Mode 4 | . . . . . . . . . . . . . . . . . . . . . . . 4 . . . . . Redirected to Shielding 45 | . . . . . . . . . . . . . . . . . . . . . 34 11 . . . . . . Ignored by Resistances 1146 | . . . . . . . . . 2 . . . . . . . . . 113 136 113 374 . . 259 149 . . Regen/Repaired (Parts) 680 | . . . . . . . . . 89 . . . . . 125 17 . . 86 . . . . . . . 363 . Core Remaining (%) 53 | 100 . 43 . . . 54 . . . . . . 56 . . . . . . 45 . . . . 26 . 48 . Volleys Fired 219 | 14 31 19 61 61 11 . . . . . . . 2 2 . . . . 9 . . . . . . . 9 . Largest 3 | 2 2 2 3 3 3 . . . . . . . 1 1 . . . . 1 . . . . . . . 1 . Hottest 69 | 40 46 46 69 69 69 . . . . . . . . 36 . . . . 20 . . . . . . . 40 . Shots Fired 543 | 28 60 34 181 184 34 . . . . . . . 2 2 . . . . 9 . . . . . . . 9 . Gun 526 | 28 60 31 180 184 34 . . . . . . . . . . . . . . . . . . . . . 9 . Cannon . | . . . . . . . . . . . . . . . . . . . . . . . . . . . . . Launcher 15 | . . 3 1 . . . . . . . . . . 2 . . . . 9 . . . . . . . . . Special 2 | . . . . . . . . . . . . . 2 . . . . . . . . . . . . . . . Kinetic 526 | 28 60 31 180 184 34 . . . . . . . . . . . . . . . . . . . . . 9 . Thermal . | . . . . . . . . . . . . . . . . . . . . . . . . . . . . . Explosive 8 | . . 3 1 . . . . . . . . . 2 2 . . . . . . . . . . . . . . Electromagnetic . | . . . . . . . . . . . . . . . . . . . . . . . . . . . . . Entropic 9 | . . . . . . . . . . . . . . . . . . . 9 . . . . . . . . . Robot Hit Streak 27 | 5 11 16 27 27 10 . . . . . . . 4 5 . . . . 3 . . . . . . . . . Robot Miss Streak 5 | 2 3 5 3 1 2 . . . . . . . . . . . . . 1 . . . . . . . . . Penetration Max . | . . . . . . . . . . . . . . . . . . . . . . . . . . . . . Secondary Targets 10 | . . 1 4 4 1 . . . . . . . . . . . . . . . . . . . . . . . Max Gunslinging Chain 1 | . . 1 1 1 1 . . . . . . . . . . . . . . . . . . . . . . . Autonomous 32 | . . . . . . . . . . . . . . . . . . . . . 1 7 4 . 6 4 3 7 Shots Hit Robots 979 | 17 40 21 124 136 24 3 20 2 78 27 12 . 12 57 2 43 17 9 11 13 43 46 17 4 44 37 83 37 Core Hits 445 | 9 16 14 49 51 12 . 6 1 41 11 7 . 12 28 . 16 7 5 20 7 20 16 8 . 18 17 38 16 Critical Kills 4 | . . . 1 2 . . . . . . . . . . . . . . . . . . . . . . 1 . Critical Parts Destroyed 6 | . 1 . 1 1 . . . . . . . . . . . . . . . . . . . . . . 3 . Critical Strikes 23 | . 1 . 2 3 . . . . . . . . 1 . . 2 . . . . . . . . 4 2 8 . Destroy 10 | . 1 . 2 3 . . . . . . . . . . . . . . . . . . . . . . 4 . Sever 1 | . . . . . . . . . . . . . 1 . . . . . . . . . . . . . . . Melee Attacks 927 | . 2 . 1 7 . 3 23 3 116 52 19 1 21 125 2 61 25 18 6 23 70 53 19 5 56 53 112 51 Impact 10 | . 2 . 1 7 . . . . . . . . . . . . . . . . . . . . . . . . Slashing 901 | . . . . . . . 22 3 116 52 19 1 21 125 2 61 25 18 4 19 69 51 17 5 56 53 111 51 Piercing . | . . . . . . . . . . . . . . . . . . . . . . . . . . . . . Entropic 12 | . . . . . . . . . . . . . . . . . . . 2 4 1 2 2 . . . 1 . Sneak Attacks 132 | . . . . . . 3 2 2 27 7 10 . 5 17 2 7 5 1 1 3 5 4 . . 12 3 13 3 Combat Hostiles 6 | . . . . . . . . . 2 1 . . . . . . 1 . . . . . . . 1 . 1 . Follow-up Attacks 23 | . . . . . . . . . . . . . . . . 2 1 . . 4 3 2 3 . 1 3 1 3 Damage Inflicted 52783 | 180 572 525 2334 2201 483 . 820 178 5026 1522 1071 . 1528 3618 190 2243 1281 411 3637 1244 2890 3683 1301 269 3961 2612 5973 3030 Guns 5719 | 180 561 308 1973 2169 467 . . . . . . . . . . . . . . . . . . . . . 61 . Cannons 2709 | . . . . . . . . . . . . . . . . . . . . . 88 557 342 . 543 343 257 579 Explosions 4913 | . . 213 288 . . . . . . . . . 787 347 . . . . 3278 . . . . . . . . . Melee 39238 | . . . . . . . 820 178 5026 1522 1071 . 673 3271 190 2243 1281 411 359 1244 2802 3126 959 269 3418 2269 5655 2451 Ramming 136 | . 11 4 73 32 16 . . . . . . . . . . . . . . . . . . . . . . . Kinetic 5719 | 180 561 308 1973 2169 467 . . . . . . . . . . . . . . . . . . . . . 61 . Thermal 139 | . . . 139 . . . . . . . . . . . . . . . . . . . . . . . . . Explosive 1496 | . . 213 149 . . . . . . . . . 787 347 . . . . . . . . . . . . . . Electromagnetic . | . . . . . . . . . . . . . . . . . . . . . . . . . . . . . Impact . | . . . . . . . . . . . . . . . . . . . . . . . . . . . . . Slashing 38847 | . . . . . . . 820 178 5026 1522 1071 . 741 3271 190 2243 1281 411 192 1044 2802 3126 959 269 3418 2269 5563 2451 Piercing . | . . . . . . . . . . . . . . . . . . . . . . . . . . . . . Entropic 3737 | . . . . . . . . . . . . . . . . . . . 3445 200 . . . . . . 92 . Phasic 2709 | . . . . . . . . . . . . . . . . . . . . . 88 557 342 . 543 343 257 579 Highest Corruption 26 | . 2 2 2 5 5 . . . 1 1 1 1 1 10 10 10 10 12 12 1 5 5 5 5 5 15 26 . Average Corruption 5 | . 2 2 2 3 5 . . . 1 1 1 1 1 10 10 10 10 11 10 1 4 5 5 5 5 4 15 . Corruption Purged . | . . . . . . . . . . . . . . . . . . . . . . . . . . . . . Corruption Blocked 3 | . . . . . . . . . . . . . . . . . . . . . . . . . . . 3 . Effects 311 | . 4 15 2 34 53 . . . 5 3 . . . 29 9 17 10 14 . 3 6 27 9 4 22 6 39 . Message Errors 69 | . 1 6 . 6 18 . . . 2 1 . . . 5 2 1 2 5 . 1 2 1 1 1 3 1 10 . Matter Fused 79 | . . 4 1 10 11 . . . 1 . . . . 11 1 5 3 1 . 1 . 12 1 . 8 2 7 . Heat Flow Errors 39 | . 1 . 1 4 6 . . . . . . . . 2 1 7 . 3 . . 2 3 1 1 2 1 4 . Energy Discharges 30 | . . 1 . 4 8 . . . 1 2 . . . . . 1 1 . . . 1 1 . 1 3 1 5 . Parts Rejected 7 | . . . . . . . . . . . . . . 4 1 . . . . . . 1 . . . . 1 . Parts Fused 9 | . . . . 3 . . . . . . . . . . 1 . 1 . . . . . 1 . 1 . 2 . Data Loss (minor) 34 | . . 2 . 1 2 . . . 1 . . . . 3 2 2 2 2 . 1 1 5 3 . 3 1 3 . Data Loss (major) 18 | . 1 . . 3 2 . . . . . . . . 2 . . . 1 . . . 2 2 1 2 . 2 . Misfires 5 | . 1 . . 2 2 . . . . . . . . . . . . . . . . . . . . . . . Alerts 9 | . . 1 . . 3 . . . . . . . . 1 . 1 . 1 . . . 2 . . . . . . Misdirections 9 | . . . . . . . . . . . . . . 1 1 . 1 1 . . . . . . . . 5 . Weapon Failures 3 | . . 1 . 1 1 . . . . . . . . . . . . . . . . . . . . . . . Overload Shots . | . . . . . . . . . . . . . . . . . . . . . . . . . . . . . Overflow Damage 5866 | . . . 44 . . . 21 . 805 417 312 . 378 384 21 208 397 1 171 209 301 391 66 12 446 258 723 301 Projectiles 326 | . . . . . . . . . . . . . . . . . . . . . . 3 . . 76 69 72 106 Explosions 251 | . . . 44 . . . . . . . . . 51 . . . . . 156 . . . . . . . . . Melee 5289 | . . . . . . . 21 . 805 417 312 . 327 384 21 208 397 1 15 209 301 388 66 12 370 189 651 195 Knockbacks . | . . . . . . . . . . . . . . . . . . . . . . . . . . . . . Impact . | . . . . . . . . . . . . . . . . . . . . . . . . . . . . . Kinetic . | . . . . . . . . . . . . . . . . . . . . . . . . . . . . . Secondary . | . . . . . . . . . . . . . . . . . . . . . . . . . . . . . Self-Inflicted Damage 122 | . . 46 76 . . . . . . . . . . . . . . . . . . . . . . . . . Shots 3 | . . 2 1 . . . . . . . . . . . . . . . . . . . . . . . . . Rammed 19 | . 5 1 7 2 4 . . . . . . . . . . . . . . . . . . . . . . . Targets Rammed 22 | . 5 1 9 3 4 . . . . . . . . . . . . . . . . . . . . . . . Kicked . | . . . . . . . . . . . . . . . . . . . . . . . . . . . . . Crushed 3 | . . . 2 1 . . . . . . . . . . . . . . . . . . . . . . . . Highest Temperature 356 | . 199 49 184 242 252 . . . 6 . . . . 157 194 239 342 250 . . 310 356 65 210 260 293 277 . Average Temperature 86 | . 41 32 16 103 86 . . . 6 . . . . 78 115 102 189 100 . . 137 47 37 117 124 90 97 . Received Heat Transfer 3709 | . 96 99 186 363 54 . 102 . 204 18 . . 9 153 . 189 . 27 . . 150 664 214 72 196 189 337 387 Effects 8 | . . . . . . . . . . . . . . . . . 3 . . . 3 . . . . . 2 . Energy Bleed 3 | . . . . . . . . . . . . . . . . . . . . . 1 . . . . . 2 . Interference 5 | . . . . . . . . . . . . . . . . . 3 . . . 2 . . . . . . . Siege Activations 1 | . . . . . . . . . . . . . . . . . . . . . . . 1 . . . . . Total Turns 7 | . . . . . . . . . . . . . . . . . . . . . . . 7 . . . . . Longest Duration 7 | . . . . . . . . . . . . . . . . . . . . . . . 7 . . . . . Martial Activations . | . . . . . . . . . . . . . . . . . . . . . . . . . . . . . Shielding Activations . | . . . . . . . . . . . . . . . . . . . . . . . . . . . . . Robots Disrupted 10 | . . . . . . . . . 3 1 . . . 1 . 1 . . . . . 2 . . 1 . . 1 Combat Hostiles 6 | . . . . . . . . . 2 . . . . . . . . . . . . 2 . . 1 . . 1 Robots Corrupted . | . . . . . . . . . . . . . . . . . . . . . . . . . . . . . Combat Hostiles . | . . . . . . . . . . . . . . . . . . . . . . . . . . . . . Parts Fried . | . . . . . . . . . . . . . . . . . . . . . . . . . . . . . Impact Corruptions . | . . . . . . . . . . . . . . . . . . . . . . . . . . . . . Robots Melted . | . . . . . . . . . . . . . . . . . . . . . . . . . . . . . Combat Hostiles . | . . . . . . . . . . . . . . . . . . . . . . . . . . . . . Parts Melted 5 | . . . . . . . . . 2 . . . . . . 1 . 1 . . . . . . . 1 . . Heat Transferred 100 | . . . 100 . . . . . . . . . . . . . . . . . . . . . . . . . Parts Sabotaged . | . . . . . . . . . . . . . . . . . . . . . . . . . . . . . Parts Stolen . | . . . . . . . . . . . . . . . . . . . . . . . . . . . . . Parts Stripped 14 | . . . . . . . . . . . . . . . . . . . . . . . 7 . . . 7 . Power Chain Reactions . | . . . . . . . . . . . . . . . . . . . . . . . . . . . . . Alert | -11 -10 -10 -9 -9 -9 -9 -6 -6 -6 -6 -6 -6 -5 -5 -5 -5 -5 -5 -5 -4 -4 -4 -4 -4 -4 -3 -3 -2 ------- Run | Yrd Mat Min Mat Sto Rec Scr Fac Was Fac Low Low Zio Pro Fac Was Fac Upp Upp War Pro Fac Ext Cet Arc Hub Res Tes Res Maximum Alert Level 2 | . . . 2 1 . . 1 . 2 . . . . 1 . 2 . . . . 1 1 1 1 2 1 1 1 Low Security (%) 71 | 100 100 100 81 83 100 . 77 100 22 . . . . 14 100 38 . . . . 68 82 50 59 53 14 71 90 Level 1 23 | . . . 16 16 . . 22 . 48 . . . . 85 . 42 . . . . 31 17 49 40 11 85 28 9 Level 2 5 | . . . 2 . . . . . 28 . . . . . . 18 . . . . . . . . 34 . . . Level 3 . | . . . . . . . . . . . . . . . . . . . . . . . . . . . . . Level 4 . | . . . . . . . . . . . . . . . . . . . . . . . . . . . . . Level 5 . | . . . . . . . . . . . . . . . . . . . . . . . . . . . . . High Security . | . . . . . . . . . . . . . . . . . . . . . . . . . . . . . Max Security . | . . . . . . . . . . . . . . . . . . . . . . . . . . . . . Peak Influence 662 | 15 68 109 454 248 192 . 279 45 662 . . . . 312 126 470 . . . . 245 342 281 214 580 371 290 238 Initial 259 | . . . . . 88 . . 45 . . . . . 226 108 53 . . . . 28 102 168 93 67 259 81 126 Average 144 | 1 13 24 126 121 97 . 135 12 309 . . . . 254 94 257 . . . . 117 82 201 167 259 269 172 112 Influence Increases 11773 | 30 290 264 1001 718 612 . 407 55 1308 190 30 . 540 545 78 876 110 70 250 115 483 746 283 181 1161 441 657 332 Destroy 0b10 Robot/C 5900 | . 140 160 600 380 200 . 120 . 540 140 . . 320 180 . 380 60 60 200 80 300 360 140 80 440 300 440 280 Destroy 0b10 Robot/NC 735 | 30 10 5 40 55 20 . 5 . 135 5 . . . 95 . 55 20 . 5 10 25 40 10 . 75 15 65 15 Destroy Leader 1042 | . 42 20 132 166 . . 30 . 122 30 . . 40 50 . 78 . 10 . 10 72 46 . . 66 52 42 34 Allied During Kill 1520 | . . . . . 126 . 46 . 82 . . . 180 . . 246 . . . . . 221 100 80 439 . . . Successful Hack 437 | . 34 . 62 32 9 . 12 . 144 . . . . 41 . 11 . . . . 7 28 . . 24 . 33 . Select Force Hacks 360 | . 30 . 60 60 210 . . . . . . . . . . . . . . . . . . . . . . . Disable Machine 480 | . . 30 60 15 30 . 180 . 30 . . . . 15 . . . . . . . 15 15 15 30 . 45 . Destroy Structure 624 | . 4 34 47 10 17 . 14 55 30 . . . . 134 78 16 . . . . 34 36 18 6 72 14 2 3 Partial Spotted 150 | . . . . . . . . . 60 . . . . 30 . 30 . . . . 15 . . . . . 15 . Lose Combat Pursuer 525 | . 30 15 . . . . . . 165 15 30 . . . . 60 30 . 45 15 30 . . . 15 60 15 . Influence Decreases 11535 | 30 290 264 1001 490 792 48 276 186 658 513 203 154 180 596 311 520 301 297 218 116 317 657 350 220 860 792 577 318 Entered New Map 2280 | . . . . . 140 48 . 86 . 241 63 154 . 134 201 23 161 47 14 46 17 109 132 140 127 236 63 98 Time Decay 6883 | 30 290 234 547 460 612 . 194 87 508 262 140 . 160 422 90 237 140 190 194 70 260 315 198 40 393 286 374 150 Lost Part 836 | . . 30 10 30 . . 10 . 10 10 . . . 40 . 40 . 60 10 . 40 106 20 20 70 120 140 70 Lost Ally 716 | . . . . . 40 . 72 13 140 . . . 20 . 20 220 . . . . . 51 . 20 120 . . . Purge Threat 820 | . . . 444 . . . . . . . . . . . . . . . . . . 76 . . 150 150 . . Squads Dispatched 76 | . 1 1 4 2 . . 2 . 15 . . . . 8 . 10 . . . . 6 3 . . 7 11 4 2 Investigation 30 | . 1 1 3 2 . . . . 5 . . . . 2 . 6 . . . . 2 2 . . . 5 . 1 Extermination 16 | . . . . . . . 1 . 4 . . . . 3 . 1 . . . . 2 . . . 2 1 2 . Reinforcement 27 | . . . 1 . . . 1 . 3 . . . . 3 . 3 . . . . 2 1 . . 5 5 2 1 Assault . | . . . . . . . . . . . . . . . . . . . . . . . . . . . . . Garrison 3 | . . . . . . . . . 3 . . . . . . . . . . . . . . . . . . . Intercept . | . . . . . . . . . . . . . . . . . . . . . . . . . . . . . Searches Triggered . | . . . . . . . . . . . . . . . . . . . . . . . . . . . . . Unchained Authorized 1 | . . . . . . . . . . . . . . . . . . . . . . . . . . . 1 . Construction Impeded 4 | . . . 1 . . . 1 . . . . . . . . . . . . . . 1 . . 1 . . . Haulers Reinforced 15 | . . . . . . . . . 3 . . . . 2 . 3 . . . . 1 . . . 2 3 1 . Active Scanning Responses . | . . . . . . . . . . . . . . . . . . . . . . . . . . . . . Cargo Convoy Interrupts . | . . . . . . . . . . . . . . . . . . . . . . . . . . . . . Stealth | -11 -10 -10 -9 -9 -9 -9 -6 -6 -6 -6 -6 -6 -5 -5 -5 -5 -5 -5 -5 -4 -4 -4 -4 -4 -4 -3 -3 -2 --------- Run | Yrd Mat Min Mat Sto Rec Scr Fac Was Fac Low Low Zio Pro Fac Was Fac Upp Upp War Pro Fac Ext Cet Arc Hub Res Tes Res Distress Signals 22 | . . . 3 4 . . . . . . . . . . . 3 . . 2 . 1 . . . 2 7 . . Communications Jammed 18 | . . . . . . . . . . . . . . . . . . . . . 18 . . . . . . . Distress Signals 18 | . . . . . . . . . . . . . . . . . . . . . 18 . . . . . . . Times Spotted 480 | . 16 18 47 23 7 . 4 6 36 7 5 . 13 30 10 29 3 3 41 6 25 24 10 4 29 23 39 22 Peak Tracking Total 13 | . 4 12 6 6 2 . 1 4 4 3 5 . 4 5 5 7 5 2 13 6 8 4 5 3 9 6 6 13 Tactical Retreats 26 | . 1 2 . . . . . . 5 1 1 . . 4 1 1 1 . 3 1 2 . . . 1 1 1 . ECM-based Alert Blocks 7 | . . . . . . . . . . . . . . 7 . . . . . . . . . . . . . . Traps | -11 -10 -10 -9 -9 -9 -9 -6 -6 -6 -6 -6 -6 -5 -5 -5 -5 -5 -5 -5 -4 -4 -4 -4 -4 -4 -3 -3 -2 ------- Run | Yrd Mat Min Mat Sto Rec Scr Fac Was Fac Low Low Zio Pro Fac Was Fac Upp Upp War Pro Fac Ext Cet Arc Hub Res Tes Res Traps Triggered 19 | . 2 . 2 3 . . 1 . 2 . . . . 2 . . 1 . . . . 3 . . . . 2 1 Indirectly . | . . . . . . . . . . . . . . . . . . . . . . . . . . . . . Trap Hack Attempts . | . . . . . . . . . . . . . . . . . . . . . . . . . . . . . Triggered . | . . . . . . . . . . . . . . . . . . . . . . . . . . . . . Disarmed . | . . . . . . . . . . . . . . . . . . . . . . . . . . . . . Reprogrammed . | . . . . . . . . . . . . . . . . . . . . . . . . . . . . . Reused 1 | . . . . . . . . . . . . . . . . . 1 . . . . . . . . . . . Traps Extracted . | . . . . . . . . . . . . . . . . . . . . . . . . . . . . . Installed 3 | . . . . . . . . . . . . . . . . . 2 1 . . . . . . . . . . Triggered 1 | . . . . . . . . . . . . . . . . . 1 . . . . . . . . . . . Most Traps Carried 6 | . . . . . . . . . . 6 6 6 6 6 6 6 6 4 3 . . . . . . . . . Machines | -11 -10 -10 -9 -9 -9 -9 -6 -6 -6 -6 -6 -6 -5 -5 -5 -5 -5 -5 -5 -4 -4 -4 -4 -4 -4 -3 -3 -2 ---------- Run | Yrd Mat Min Mat Sto Rec Scr Fac Was Fac Low Low Zio Pro Fac Was Fac Upp Upp War Pro Fac Ext Cet Arc Hub Res Tes Res Machines Disabled 35 | . . 2 4 1 2 . 12 . 2 . . . 1 1 . . . . 1 . . 2 1 1 2 . 3 . Max in Single Turn 2 | . . 2 2 1 1 . 1 . 1 . . . . 1 . . . . 1 . . 1 1 . 1 . 1 . Garrison Access 5 | . . . . . . . . . 3 . . . . 2 . . . . . . . . . . . . . . Machines Repaired . | . . . . . . . . . . . . . . . . . . . . . . . . . . . . . Machines Dismantled 1 | . . . . . 1 . . . . . . . . . . . . . . . . . . . . . . . Machines Sabotaged . | . . . . . . . . . . . . . . . . . . . . . . . . . . . . . Overloaded Fab Kills . | . . . . . . . . . . . . . . . . . . . . . . . . . . . . . Hacking | -11 -10 -10 -9 -9 -9 -9 -6 -6 -6 -6 -6 -6 -5 -5 -5 -5 -5 -5 -5 -4 -4 -4 -4 -4 -4 -3 -3 -2 --------- Run | Yrd Mat Min Mat Sto Rec Scr Fac Was Fac Low Low Zio Pro Fac Was Fac Upp Upp War Pro Fac Ext Cet Arc Hub Res Tes Res Machines Accessed 150 | . 10 1 16 13 13 5 5 . 27 . 2 1 1 9 . 9 . . 1 . 4 12 1 . 5 9 5 1 Terminals 82 | . 8 . 12 11 6 . 3 . 12 . . . 1 2 . 2 . . . . 1 11 1 . 5 3 4 . Fabricators 8 | . . . . . . . 1 . 3 . . . . 3 . . . . . . 1 . . . . . . . Repair Stations 1 | . . . . . . . . . 1 . . . . . . . . . . . . . . . . . . . Recycling Units 33 | . 2 . 2 2 7 . . . 6 . . . . 1 . 6 . . . . 1 1 . . . 4 . 1 Scanalyzers 10 | . . . 2 . . . 1 . 2 . . . . 1 . 1 . . . . 1 . . . . 1 1 . Garrison Access 6 | . . . . . . . . . 3 . . . . 2 . . . . . . . . . . . 1 . . Total Hacks 393 | . 39 1 57 39 33 13 12 . 66 . 4 4 7 19 . 17 . . 1 . 9 25 4 . 16 16 10 1 Successful 222 | . 20 1 40 24 22 13 2 . 28 . 4 4 7 14 . 13 . . 1 . 8 6 . . 7 4 3 1 Failed 168 | . 18 . 16 15 11 . 10 . 38 . . . . 5 . 4 . . . . 1 19 4 . 9 12 6 . Catastrophic 34 | . 2 . 1 . 1 . 4 . 15 . . . . 2 . . . . . . . 4 . . 1 3 1 . Database Lockouts 3 | . 1 . 1 . . . . . . . . . . . . . . . . . . . . . . . 1 . Manual 179 | . 33 3 36 25 22 . 3 . 14 . . 1 . 5 . 14 . . . . 5 4 1 . 2 5 5 1 Terminals 232 | . 32 . 42 32 16 . 8 . 26 . . . 7 4 . 4 . . . . 4 22 4 . 16 7 8 . Fabricators 21 | . . . . . . . 3 . 8 . . . . 8 . . . . . . 2 . . . . . . . Repair Stations 3 | . . . . . . . . . 3 . . . . . . . . . . . . . . . . . . . Recycling Units 69 | . 7 . 5 7 17 . . . 13 . . . . 2 . 8 . . . . 1 3 . . . 5 . 1 Scanalyzers 33 | . . . 10 . . . 1 . 8 . . . . 3 . 5 . . . . 2 . . . . 2 2 . Garrison Access 12 | . . . . . . . . . 8 . . . . 2 . . . . . . . . . . . 2 . . Terminal Hacks 84 | . 9 1 14 8 1 13 1 . 6 . 4 4 7 1 . . . . 1 . 2 5 . . 5 1 1 . Record 21 | . . . . . . 11 . . . . 3 . 7 . . . . . . . . . . . . . . . Part Schematic 7 | . 2 . . . . . . . 1 . . 4 . . . . . . . . . . . . . . . . Robot Analysis 6 | . 5 . 1 . . . . . . . . . . . . . . . . . . . . . . . . . Prototype ID Bank 11 | . . . 4 3 1 . . . 2 . . . . . . . . . . . . . . . 1 . . . Open Door 13 | . . 1 . 4 . 1 . . . . 1 . . . . . . . 1 . . 4 . . . . 1 . Level Access Points 1 | . . . . . . . . . 1 . . . . . . . . . . . . . . . . . . . Branch Access Points 2 | . 1 . . . . . 1 . . . . . . . . . . . . . . . . . . . . . Emergency Access Points 1 | . . . . . . . . . . . . . . . . . . . . . . . . . 1 . . . Terminal Index 4 | . 1 . 1 . . . . . . . . . . 1 . . . . . . 1 . . . . . . . Alert Level 2 | . . . 1 . . . . . . . . . . . . . . . . . 1 . . . . . . . Unreport Threat 6 | . . . 3 . . . . . . . . . . . . . . . . . . 1 . . 1 1 . . Locate Traps 2 | . . . 1 1 . . . . . . . . . . . . . . . . . . . . . . . . Surveillance Status 1 | . . . . . . . . . . . . . . . . . . . . . . . . . 1 . . . Investigation Status 1 | . . . . . . . . . . . . . . . . . . . . . . . . . 1 . . . Recall Investigation 1 | . . . 1 . . . . . . . . . . . . . . . . . . . . . . . . . Hauler Manifests 3 | . . . 1 . . . . . 2 . . . . . . . . . . . . . . . . . . . Registered Components 1 | . . . 1 . . . . . . . . . . . . . . . . . . . . . . . . . Proto ID Catalog 1 | . . . . . . 1 . . . . . . . . . . . . . . . . . . . . . . Fabricator Hacks 8 | . . . . . . . . . 3 . . . . 4 . . . . . . 1 . . . . . . . Network Status 1 | . . . . . . . . . . . . . . 1 . . . . . . . . . . . . . . Load Schematic 5 | . . . . . . . . . 2 . . . . 2 . . . . . . 1 . . . . . . . Build 2 | . . . . . . . . . 1 . . . . 1 . . . . . . . . . . . . . . Repair Station Hacks 2 | . . . . . . . . . 2 . . . . . . . . . . . . . . . . . . . Scan Component 1 | . . . . . . . . . 1 . . . . . . . . . . . . . . . . . . . Repair 1 | . . . . . . . . . 1 . . . . . . . . . . . . . . . . . . . Recycling Unit Hacks 17 | . 2 . 2 2 6 . . . 4 . . . . 1 . . . . . . . . . . . . . . Retrieve Components 17 | . 2 . 2 2 6 . . . 4 . . . . 1 . . . . . . . . . . . . . . Scanalyzer 24 | . . . 7 . . . . . 7 . . . . 3 . 4 . . . . 2 . . . . . 1 . Insert Component 5 | . . . 1 . . . . . 2 . . . . . . 2 . . . . . . . . . . . . Analyze 8 | . . . 2 . . . . . 4 . . . . . . 2 . . . . . . . . . . . . Retrieve Study 11 | . . . 4 . . . . . 1 . . . . 3 . . . . . . 2 . . . . . 1 . Garrison Access Hacks 5 | . . . . . . . . . 3 . . . . 2 . . . . . . . . . . . . . . Seal Access 5 | . . . . . . . . . 3 . . . . 2 . . . . . . . . . . . . . . Unauthorized Hacks 82 | . 9 . 17 14 15 . 1 . 3 . . . . 3 . 9 . . . . 3 1 . . 2 3 1 1 Terminals 50 | . 8 . 15 12 8 . . . . . . . . . . 3 . . . . 1 . . . 2 . 1 . Track 11 | . . . 1 4 . . . . . . . . . . . 2 . . . . 1 . . . 2 . 1 . Assimilate 5 | . . . 5 . . . . . . . . . . . . . . . . . . . . . . . . . Botnet 12 | . 2 . 3 3 3 . . . . . . . . . . 1 . . . . . . . . . . . . Operators 2 | . 1 . 1 . . . . . . . . . . . . . . . . . . . . . . . . . Skim 20 | . 5 . 5 5 5 . . . . . . . . . . . . . . . . . . . . . . . Fabricators 7 | . . . . . . . 1 . 2 . . . . 3 . . . . . . 1 . . . . . . . Prioritize 1 | . . . . . . . . . . . . . . 1 . . . . . . . . . . . . . . Liberate 2 | . . . . . . . . . 2 . . . . . . . . . . . . . . . . . . . Haulers 2 | . . . . . . . 1 . . . . . . 1 . . . . . . . . . . . . . . Recompile 2 | . . . . . . . . . . . . . . 1 . . . . . . 1 . . . . . . . Repair Stations . | . . . . . . . . . . . . . . . . . . . . . . . . . . . . . Recycling Units 25 | . 1 . 2 2 7 . . . 1 . . . . . . 6 . . . . 1 1 . . . 3 . 1 Recyclers 1 | . . . . . . . . . 1 . . . . . . . . . . . . . . . . . . . Tunnel 12 | . 1 . 2 2 7 . . . . . . . . . . . . . . . . . . . . . . . Fedlink 12 | . . . . . . . . . . . . . . . . 6 . . . . 1 1 . . . 3 . 1 Scanalyzers . | . . . . . . . . . . . . . . . . . . . . . . . . . . . . . Garrison Access . | . . . . . . . . . . . . . . . . . . . . . . . . . . . . . Data Cores Recovered 6 | . . . . 1 . . . . 2 . . . . 1 . . . . . . . 1 . . . . 1 . Used 1 | . . . . . . . . . 1 . . . . . . . . . . . . . . . . . . . Hacking Detections 105 | . 10 1 13 9 8 . 5 . 23 . . . . 5 . 3 . . . . 3 9 1 . 4 6 5 . Full Trace Events 10 | . 1 . 1 . 1 . . . 4 . . . . 1 . . . . . . . . . . . 2 . . Feedback Events 1 | . . . . . . . . . . . . . . . . . . . . . . . . . . 1 . . Corruption 1 | . . . . . . . . . . . . . . . . . . . . . . . . . . 1 . . Feedback Blocked . | . . . . . . . . . . . . . . . . . . . . . . . . . . . . . Robot Schematics Acquired 5 | . . . . . . . . . . . . 4 . . . . . . . . . . . . . . 1 . Robots Built . | . . . . . . . . . . . . . . . . . . . . . . . . . . . . . Authchips . | . . . . . . . . . . . . . . . . . . . . . . . . . . . . . Time . | . . . . . . . . . . . . . . . . . . . . . . . . . . . . . Total Robot Build Rating . | . . . . . . . . . . . . . . . . . . . . . . . . . . . . . Part Schematics Acquired 27 | . 2 . 1 . . . . . 3 . . 18 . . . 2 . . . . . . . . . . 1 . Parts Built 4 | . . . . . . . . . 2 . . . . 2 . . . . . . . . . . . . . . Authchips 1 | . . . . . . . . . . . . . . 1 . . . . . . . . . . . . . . Time 234 | . . . . . . . . . 117 . . . . 117 . . . . . . . . . . . . . . Total Part Build Rating 28 | . . . . . . . . . 14 . . . . 14 . . . . . . . . . . . . . . Part Studies Acquired 11 | . . . 4 . . . . . 1 . . . . 3 . . . . . . 2 . . . . . 1 . Parts Repaired 1 | . . . . . . . . . 1 . . . . . . . . . . . . . . . . . . . Time 43 | . . . . . . . . . 43 . . . . . . . . . . . . . . . . . . . Parts Recycled . | . . . . . . . . . . . . . . . . . . . . . . . . . . . . . Recycled Matter . | . . . . . . . . . . . . . . . . . . . . . . . . . . . . . Retrieved Matter . | . . . . . . . . . . . . . . . . . . . . . . . . . . . . . Retrieved Components 87 | . 2 . 19 18 27 . . . 11 . . . . 10 . . . . . . . . . . . . . . Parts Scanalyzed 5 | . . . 1 . . . . . 2 . . . . . . 2 . . . . . . . . . . . . Part Schematics Acquired 5 | . . . 1 . . . . . 2 . . . . . . 2 . . . . . . . . . . . . Parts Damaged 1 | . . . . . . . . . . . . . . . . 1 . . . . . . . . . . . . Bothacking | -11 -10 -10 -9 -9 -9 -9 -6 -6 -6 -6 -6 -6 -5 -5 -5 -5 -5 -5 -5 -4 -4 -4 -4 -4 -4 -3 -3 -2 ------------ Run | Yrd Mat Min Mat Sto Rec Scr Fac Was Fac Low Low Zio Pro Fac Was Fac Upp Upp War Pro Fac Ext Cet Arc Hub Res Tes Res Used RIF Installer . | . . . . . . . . . . . . . . . . . . . . . . . . . . . . . Robots Hacked 4 | . . . . . . 3 1 . . . . . . . . . . . . . . . . . . . . . Non-combat 2 | . . . . . . 1 1 . . . . . . . . . . . . . . . . . . . . . Combat 2 | . . . . . . 2 . . . . . . . . . . . . . . . . . . . . . . Robot Hacks Applied 4 | . . . . . . 3 1 . . . . . . . . . . . . . . . . . . . . . parse_system 3 | . . . . . . 3 . . . . . . . . . . . . . . . . . . . . . . find_chute 1 | . . . . . . . 1 . . . . . . . . . . . . . . . . . . . . . Relay Couplers Released . | . . . . . . . . . . . . . . . . . . . . . . . . . . . . . Fabnet Peak Effective % . | . . . . . . . . . . . . . . . . . . . . . . . . . . . . . Robots Rewired 19 | . . . . . 11 . . . . . . . . . . . . . . . . 8 . . . . . . Allies Hacked 2 | . . . . . . . . . 1 . . . . . . 1 . . . . . . . . . . . . Hacks Repelled . | . . . . . . . . . . . . . . . . . . . . . . . . . . . . . Allies | -11 -10 -10 -9 -9 -9 -9 -6 -6 -6 -6 -6 -6 -5 -5 -5 -5 -5 -5 -5 -4 -4 -4 -4 -4 -4 -3 -3 -2 -------- Run | Yrd Mat Min Mat Sto Rec Scr Fac Was Fac Low Low Zio Pro Fac Was Fac Upp Upp War Pro Fac Ext Cet Arc Hub Res Tes Res Total Allies 84 | . . . . 10 11 . . 18 5 . . 2 . . 20 . . . . . . 13 5 . . . . . Largest Group 19 | . . . . 10 19 19 17 18 8 . . 2 2 . 19 13 . . . . . 7 11 11 9 . . . Highest-Rated Group 827 | . . . . 88 235 235 181 638 330 . . 192 192 . 684 501 . . . . . 383 827 827 624 . . . Highest-Rated Ally 159 | . . . . 16 34 34 34 50 46 . . 96 96 . 50 46 . . . . . 159 159 152 96 . . . Total Orders 15 | . . . . . . . . . . . . . . 8 . 1 . . . . 4 . . . 2 . . . STAY 2 | . . . . . . . . . . . . . . . . . . . . . . . . . 2 . . . FOLLOW 1 | . . . . . . . . . . . . . . . . . . . . . 1 . . . . . . . RETURN 12 | . . . . . . . . . . . . . . 8 . 1 . . . . 3 . . . . . . . Ally Attacks 657 | . . . . . 22 . 28 70 71 . . . 17 . 99 120 . . . . . 91 15 35 89 . . . Total Damage 22277 | . . . . . 407 . 651 4703 1634 . . . 684 . 4204 2677 . . . . . 2366 593 1256 3102 . . . Kills 106 | . . . . . 6 . 5 11 11 . . . 5 . 12 15 . . . . . 15 4 4 18 . . . Allies Corrupted 2 | . . . . . . . . . . . . . . . . 1 . . . . . . . . 1 . . . Allies Melted 2 | . . . . . . . . . . . . . . . . . . . . . . 2 . . . . . . Intel | -11 -10 -10 -9 -9 -9 -9 -6 -6 -6 -6 -6 -6 -5 -5 -5 -5 -5 -5 -5 -4 -4 -4 -4 -4 -4 -3 -3 -2 ------- Run | Yrd Mat Min Mat Sto Rec Scr Fac Was Fac Low Low Zio Pro Fac Was Fac Upp Upp War Pro Fac Ext Cet Arc Hub Res Tes Res Active Infowar (turns) 15477 | 26 431 791 1002 . . . 556 234 1514 565 297 745 327 1029 193 515 285 398 1097 268 606 1344 409 91 941 629 874 310 Optics 13227 | . . . . . . . 556 234 1514 565 297 745 327 1029 193 515 285 398 1097 268 606 1344 409 91 941 629 874 310 Sensors 5380 | . . . . . . . . 31 855 483 297 745 294 632 . 374 274 312 516 . 30 94 409 28 . 6 . . IFF 78 | . . . . . . . . . . . . . . . . . . . . . . . . . . 78 . . Seismic 2311 | 26 431 791 1002 . . . 61 . . . . . . . . . . . . . . . . . . . . . T.N.C. 611 | . . . . . . . . . 415 . . . . . . . . . . . . . . . . 98 . 98 Cloaking 5 | . . . . . . . . . . 3 . . . . . . . . . . . 2 . . . . . . Jamming 462 | . . . . . . . . . . . . . . . . . . . . . 360 102 . . . . . . ECM 1219 | . . . . . . . . . . 47 . . 33 738 131 263 . . . . . . . . 2 5 . . Robot Analysis Total 6 | . 5 . 1 . . . . . . . . . . . . . . . . . . . . . . . . . Derelict Logs Recovered 10 | . . 1 . . . . . . . 2 2 1 1 . . . 1 1 . 1 . . . . . . . . Drone Launches 10 | . . . . . . . . . . . . . . 7 . 1 . . . . 2 . . . . . . . Drone Recoveries 10 | . . . . . . . . . . . . . . 7 . 1 . . . . 2 . . . . . . . Exploration | -11 -10 -10 -9 -9 -9 -9 -6 -6 -6 -6 -6 -6 -5 -5 -5 -5 -5 -5 -5 -4 -4 -4 -4 -4 -4 -3 -3 -2 ------------- Run | Yrd Mat Min Mat Sto Rec Scr Fac Was Fac Low Low Zio Pro Fac Was Fac Upp Upp War Pro Fac Ext Cet Arc Hub Res Tes Res Turns Passed 24537 | 171 1249 1191 2015 1493 2018 3170 559 234 1514 565 297 745 327 1029 193 515 285 398 1097 268 606 1344 409 91 941 629 874 310 Spaces Moved 22214 | 76 542 623 879 593 510 1570 282 270 2859 1091 910 1098 770 1970 229 926 607 518 1191 423 740 779 140 40 590 973 798 217 Core 35 | 2 . . . . . . . . . . . . . . . . . . . . . . . . . . . 33 Treads 5729 | 74 542 623 879 593 510 1570 282 17 . . . . . . . . . . . . . 328 140 40 131 . . . Legs 684 | . . . . . . . . . . . . . . . . . . . 31 . . . . . 459 184 . 10 Wheels 15 | . . . . . . . . . . . . . . . . . . . . . . 15 . . . . . . Hover 2982 | . . . . . . . . . . . . . . . . . . . 816 423 740 436 . . . . 393 174 Flight 12769 | . . . . . . . . 253 2859 1091 910 1098 770 1970 229 926 607 518 344 . . . . . . 789 405 . Fastest Speed 19 | 50 160 160 160 200 200 200 160 29 26 25 28 28 25 25 29 29 31 31 40 53 48 48 150 160 120 19 30 50 Average Speed 81 | 157 160 160 194 200 250 200 160 43 27 27 28 64 27 27 29 30 31 48 67 53 51 134 157 160 128 42 62 85 Slowest Speed 280 | 160 160 240 240 200 280 200 160 160 109 100 28 100 100 32 29 31 31 105 240 53 147 165 160 160 160 120 220 200 Overloaded Moves 9 | . . . . . . . . . . 9 . . . . . . . . . . . . . . . . . . Propulsion Burnouts . | . . . . . . . . . . . . . . . . . . . . . . . . . . . . . Robots Hopped 11 | . . . . . . . . . 2 . . . . . . 2 . . 3 . . . . . . 2 2 . Potential Cave-ins 11 | . . 2 . . . . . . . . . . . . . . . . . . 2 . . . . 7 . . Cave-ins Triggered 2 | . . . . . . . . . . . . . . 1 . . . . . . . . . . . 1 . . Exploration Rate (%) 68 | 5 88 99 88 94 94 84 10 89 70 90 94 90 93 63 91 30 73 66 90 63 20 91 67 80 64 29 69 8 Regions Visited 28 Branch Regions 17 Pre-discovered Areas 26 | . 4 1 4 4 9 . . . . . . 2 . . . 1 . . . 1 . . . . . . . . Known Exits Taken 20 | . 1 1 1 . 1 . . . 1 1 1 1 1 . . 1 1 1 1 1 1 1 1 . 1 1 1 . Unknown Exits Taken 4 | 1 . . . 1 . 1 . . . . . . . . . . . . . . . . . 1 . . . . Scrap Searched 24 | . . 2 . . . 7 . . . 2 3 3 1 . . . 3 1 . 2 . . . . . . . . Spaces Dug 228 | . 2 26 10 6 . . . 1 29 20 6 . 10 61 . 7 5 2 . 2 16 3 . . 7 13 1 1 Terrain Destroyed 442 | . 2 35 42 6 . . . 1 29 20 6 . 35 67 . 7 5 2 142 2 16 3 . . 7 13 1 1 Melee 188 | . 2 . 1 6 . . . 1 29 20 6 . 10 56 . 7 5 2 . 2 16 3 . . 7 13 1 1 Projectile . | . . . . . . . . . . . . . . . . . . . . . . . . . . . . . AOE 254 | . . 35 41 . . . . . . . . . 25 11 . . . . 142 . . . . . . . . . Terrain Rammed . | . . . . . . . . . . . . . . . . . . . . . . . . . . . . . Walls Destroyed . | . . . . . . . . . . . . . . . . . . . . . . . . . . . . . Machines Disabled . | . . . . . . . . . . . . . . . . . . . . . . . . . . . . . Actions | -11 -10 -10 -9 -9 -9 -9 -6 -6 -6 -6 -6 -6 -5 -5 -5 -5 -5 -5 -5 -4 -4 -4 -4 -4 -4 -3 -3 -2 --------- Run | Yrd Mat Min Mat Sto Rec Scr Fac Was Fac Low Low Zio Pro Fac Was Fac Upp Upp War Pro Fac Ext Cet Arc Hub Res Tes Res Total 26986 | 99 860 773 1055 754 1215 1603 362 378 3415 1284 933 1134 861 2272 349 1067 665 638 1458 446 878 1008 312 61 699 1110 1019 278 Wait 2645 | 2 252 105 37 46 563 16 21 77 345 114 5 32 56 142 108 67 27 99 201 1 48 17 141 13 19 25 59 7 Move 22167 | 75 541 622 878 592 509 1569 282 269 2855 1090 909 1097 769 1970 228 921 606 517 1185 422 739 778 139 39 589 967 793 217 Hop 9 | . . . . . . . . . 1 . . . . . . 2 . . 2 . . . . . . 2 2 . Pick Up 138 | 1 13 4 12 14 1 8 10 11 23 6 . 1 . 4 2 . 2 2 7 2 6 1 1 . . 4 3 . Fast Attach 143 | 7 . 2 . . . . 2 3 7 1 . 2 3 10 1 2 1 . 15 1 3 17 4 2 18 19 18 5 Attach 47 | . 2 1 3 3 2 . 7 . 4 1 . . . 5 . 3 . 1 4 1 2 . . . . 6 2 . Detach 34 | . 2 . . . 2 . 4 3 3 . . . . 4 . 1 . . 3 . . . . 1 . 7 3 1 Swap 222 | . 8 16 30 15 3 1 6 9 32 13 . . 6 6 6 10 3 . 9 1 9 4 4 . 8 16 7 . Drop 181 | . 4 3 24 11 2 6 7 3 30 7 . 1 4 4 2 2 . . 17 1 4 5 8 1 10 13 12 . Fire 219 | 14 31 19 61 61 11 . . . . . . . 2 2 . . . . 9 . . . . . . . 9 . Melee 898 | . 2 . 1 7 . 3 23 3 115 52 19 1 21 125 2 59 24 18 6 17 67 49 15 5 55 50 111 48 Ram . | . . . . . . . . . . . . . . . . . . . . . . . . . . . . . Kick . | . . . . . . . . . . . . . . . . . . . . . . . . . . . . . Crush 22 | . 5 1 9 3 4 . . . . . . . . . . . . . . . . . . . . . . . Escape Stasis 39 | . . . . 2 . . . . . . . . . . . . . . . . . 36 . . . 1 . . Rewire 216 | . . . . . 115 . . . . . . . . . . . . . . . . 101 . . . . . . Trap 3 | . . . . . . . . . . . . . . . . . 2 1 . . . . . . . . . . Miscellaneous 3 | . . . . . 3 . . . . . . . . . . . . . . . . . . . . . . . Route ------- -11/Scrapyard -10/Materials (discovered 5 exits: *Mat x3 / *Min / Sub) -10/Mines (discovered 3 exits: *Mat x2 / *Sub) -9/Materials (discovered 5 exits: *Mat x3 / *Min / *Sto) -9/Storage (discovered 2 exits: *Mat / *Rec) -9/Recycling (discovered 2 exits: *Fac / *Scr) -9/Scraptown (discovered 2 exits: *Fac x2) -6/Factory (discovered 2 exits: Low x2) -6/Waste -6/Factory (discovered 5 exits: *Fac x4 / *Low) -6/Lower Caves (discovered 2 exits: *Low / *Zio) -6/Lower Caves (discovered 2 exits: *Fac / *Zio) -6/Zion -5/Proximity Caves -5/Factory (discovered 6 exits: *Fac x4 / Upp x2) -5/Waste -5/Factory (discovered 3 exits: *Fac / *Upp x2) -5/Upper Caves -5/Upper Caves -5/Warlord -4/Proximity Caves -4/Factory (discovered 4 exits: *Res x2 / *Ext x2) -4/Extension (discovered 2 exits: *Res / *Cet) -4/Cetus (discovered 2 exits: *Res / *Arc) -4/Archives (discovered 3 exits: *Res / *Hub x2) -4/Hub_04(d) (discovered 2 exits: *Res x2) -3/Research (discovered 2 exits: *Res / *Tes) -3/Testing -2/Research History --------- Turn | Location | Event 20 | -11/Scrapyard | Discovered new exit (range 16) 172 | -11/Scrapyard | Entered Materials 306 | -10/Materials | Build established: Mutant 583 | -10/Materials | Discovered new exit (range 9) 736 | -10/Materials | Discovered new exit (range 16) 860 | -10/Materials | Identified exit to Mines 910 | -10/Materials | Central database locked down 944 | -10/Materials | Learned Storage machine intel 1047 | -10/Materials | Discovered new exit (range 13) 1079 | -10/Materials | Identified exit to Materials 1130 | -10/Materials | Learned location of Subcaves (-10) 1171 | -10/Materials | Learned location of Recycling (-9) 1202 | -10/Materials | Identified exit to Subcaves 1202 | -10/Materials | Learned location of 2 exits from Materials 1294 | -10/Materials | Loaded intel: 8 terminal locations 1405 | -10/Materials | Learned Storage security intel 1421 | -10/Materials | Entered Mines 1428 | -10/Mines | Received a Rocket Launcher from a helpful Derelict 1490 | -10/Mines | Met a Derelict shopkeep closing up shop 1725 | -10/Mines | Assembled infested the area 1730 | -10/Mines | Assisted by a Guerilla fighting off Assembled 1789 | -10/Mines | Core integrity fell below 50% 2070 | -10/Mines | Build established: Scavenger-Mutant 2371 | -10/Mines | Discovered exit to Materials (range 7) 2436 | -10/Mines | Discovered exit to Materials (range 10) 2519 | -10/Mines | Learned location of Zion (-6) 2550 | -10/Mines | Discovered exit to Subcaves (range 9) 2612 | -10/Mines | Entered Materials 2612 | -9/Materials | Evolved 2 slots: Utility x1, Weapon x1 2613 | -9/Materials | Identified exit to Materials 2613 | -9/Materials | Identified exit to Mines 3237 | -9/Materials | Build established: Scavenger-Tank 3251 | -9/Materials | Identified exit to Storage 3337 | -9/Materials | Learned Storage garrison access intel 3387 | -9/Materials | Learned Storage stockpile data 3403 | -9/Materials | Learned Storage emergency access door positions 3423 | -9/Materials | Learned 4 Recycling zone layouts 3511 | -9/Materials | Central database locked down 3776 | -9/Materials | Build established: Tank 4627 | -9/Materials | Entered Storage 4632 | -9/Storage | Loaded intel: 41 machine locations 4981 | -9/Storage | Used back door to open Recycling access 4981 | -9/Storage | Discovered new exit (range 5) 5502 | -9/Storage | Lost 3 parts (1p1n1u) 5814 | -9/Storage | Found Prototype Processor 5866 | -9/Storage | Learned Materials stockpile data 5950 | -9/Storage | Learned Storage machine intel 6015 | -9/Storage | Assisted by bots powering up and referring to "LRC-V3" 6120 | -9/Storage | Entered Recycling 6120 | -9/Recycling | Accompanied by 10 allies 6121 | -9/Recycling | Identified exit to Factory 6318 | -9/Recycling | Build established: Commander-Tank 7584 | -9/Recycling | Identified exit to Scraptown 7649 | -9/Recycling | Learned location of Storage (-9) 7702 | -9/Recycling | Learned Materials garrison access intel 7801 | -9/Recycling | Build established: Commander-Mutant 7804 | -9/Recycling | Learned Materials trap positions 7841 | -9/Recycling | Learned 2 Storage zone layouts 7888 | -9/Recycling | Learned location of 1 exit from Recycling 8044 | -9/Recycling | Scanned before Scraplab entrance 8072 | -9/Recycling | Entered Scraplab 8138 | -9/Recycling | Entered Scraptown 8138 | -9/Scraptown | Accompanied by 19 allies 8138 | -9/Scraptown | System corruption cleaned by C-Scrubber 8437 | -9/Scraptown | Visited UFD Registry 8437 | -9/Scraptown | Registered with UFD as "Zerodrive" 8453 | -9/Scraptown | Visited Red Mages 8541 | -9/Scraptown | Visited Fellowship of the Rings 8557 | -9/Scraptown | Visited IN-MT5's Study 8613 | -9/Scraptown | Visited The Evicted 8655 | -9/Scraptown | Visited Symbiants 8711 | -9/Scraptown | Visited Spacefarers 8959 | -9/Scraptown | Heard Great Nut preacher, LISTEN AND RECITE! 9011 | -9/Scraptown | Discovered new exit (range 11) 9277 | -9/Scraptown | Visited Cave Peace 9377 | -9/Scraptown | Visited Observation Area 9425 | -9/Scraptown | Visited Science Guys 9489 | -9/Scraptown | Visited Chapter 10 9631 | -9/Scraptown | Visited LU-1G1's Boring Crew 9659 | -9/Scraptown | Visited Scrap Suit Storage 9685 | -9/Scraptown | Visited Sword Containment 9703 | -9/Scraptown | Visited DA-N13 Charitable Foundation 9711 | -9/Scraptown | Found DCF Scrap (30 items) 9769 | -9/Scraptown | Visited Science Testing Area 9833 | -9/Scraptown | Visited Supply Room 10016 | -9/Scraptown | Found Prototype Slashing Weapon 10016 | -9/Scraptown | Identified Companion Sword 11176 | -9/Scraptown | Met Optimus 11176 | -9/Scraptown | Accepted into 0bPrime 11282 | -9/Scraptown | Discovered new exit (range 3) 11308 | -9/Scraptown | Entered Factory 11308 | -6/Factory | Accompanied by 17 allies 11308 | -6/Factory | Evolved 6 slots: Propulsion x3, Utility x3 11313 | -6/Factory | Identified Exp. Targeting Computer 11483 | -6/Factory | Lost 13 allies 11521 | -6/Factory | P-60 Hacker assimilated allied Mercenary 2f 11684 | -6/Factory | Identified exit to Lower Caves 11749 | -6/Factory | Build established: Scavenger-Mutant 11867 | -6/Factory | Sucked down chute 11867 | -6/Factory | Entered Waste 11879 | -6/Waste | Spotted C-40 Crusher 11910 | -6/Waste | Spotted C-40 Crusher 11959 | -6/Waste | Warlord forces began an assault 11965 | -6/Waste | Spotted C-40 Crusher 11965 | -6/Waste | Spotted C-40 Crusher 11965 | -6/Waste | Spotted C-40 Crusher 11965 | -6/Waste | Spotted C-40 Crusher 11983 | -6/Waste | Allies destroyed C-40 Crusher 11987 | -6/Waste | Allies destroyed C-40 Crusher 11990 | -6/Waste | Allies destroyed C-40 Crusher 11992 | -6/Waste | Allies destroyed C-40 Crusher 12019 | -6/Waste | Lost 5 allies 12029 | -6/Waste | Allies destroyed C-40 Crusher 12050 | -6/Waste | Allies destroyed C-40 Crusher 12055 | -6/Waste | Discovered new exit (range 11) 12101 | -6/Waste | Entered Factory 12101 | -6/Factory | Accompanied by 8 allies 12146 | -6/Factory | Repaired Broken Imp. Cloaking Device 12260 | -6/Factory | Discovered exit to Lower Caves (range 5) 12337 | -6/Factory | Garrison activated, responded to threat 12473 | -6/Factory | Build established: Sprinter 12653 | -6/Factory | Spotted B-75 Beast 12774 | -6/Factory | Discovered new exit (range 8) 12776 | -6/Factory | Identified exit to Factory 12861 | -6/Factory | Discovered exit to Factory (range 9) 12944 | -6/Factory | Build established: Scout 13337 | -6/Factory | Fabricated Lrn. Sensor Array? 13615 | -6/Factory | Entered Lower Caves 13617 | -6/Lower Caves | Learned 8 Factory zone layouts 13771 | -6/Lower Caves | Learned Factory stockpile data 13776 | -6/Lower Caves | Discovered new exit (range 19) 13780 | -6/Lower Caves | Identified exit to Lower Caves 14046 | -6/Lower Caves | A Derelict revealed a hidden shortcut to a safe place 14059 | -6/Lower Caves | Identified exit to Zion 14180 | -6/Lower Caves | Entered another Lower Caves area 14192 | -6/Lower Caves | Discovered exit to Factory (range 4) 14278 | -6/Lower Caves | Learned Factory stockpile data 14287 | -6/Lower Caves | Discovered exit to Zion (range 19) 14294 | -6/Lower Caves | Encountered a Warlord checkpoint 14454 | -6/Lower Caves | Learned Extension emergency access door positions 14454 | -6/Lower Caves | Learned Armory security intel 14477 | -6/Lower Caves | Entered Zion 14481 | -6/Zion | Acquired unknown access codes intercepted by a Zionite 14485 | -6/Zion | Discovered new exit (range 22) 14528 | -6/Zion | System corruption cleaned by Quarantine Array 14558 | -6/Zion | Given the Hacking Drone Bay 14600 | -6/Zion | Turned away by Imprinter 14632 | -6/Zion | Found Prototype Special Weapon 14632 | -6/Zion | Identified RU-N14's Throwing Claymores 14635 | -6/Zion | Found RU-N14's Throwing Claymores 14715 | -6/Zion | Learned Factory security intel 14777 | -6/Zion | Given A8's code to call for help 14873 | -6/Zion | Enhanced Grunt warped into view, answering call for help 14882 | -6/Zion | Enhanced Grunt warped into view, answering call for help 14941 | -6/Zion | Build established: Assassin 15097 | -6/Zion | Found Prototype Device 15190 | -6/Zion | Identified exit to Proximity Caves 15222 | -6/Zion | Entered Proximity Caves 15222 | -5/Proximity Caves | Accompanied by 2 allies 15260 | -5/Proximity Caves | Destroyed 8 combat bots 15319 | -5/Proximity Caves | Attracted the attention of an 0b10 checkpoint 15387 | -5/Proximity Caves | Spotted B-75 Beast 15445 | -5/Proximity Caves | Learned Factory non-interactive machine intel 15503 | -5/Proximity Caves | Discovered exit to Factory (range 15) 15519 | -5/Proximity Caves | Build established: Scout 15535 | -5/Proximity Caves | Learned Factory stockpile data 15535 | -5/Proximity Caves | Learned Factory security intel 15535 | -5/Proximity Caves | Learned Factory terminal intel 15535 | -5/Proximity Caves | Learned Research terminal intel 15549 | -5/Proximity Caves | Entered Factory 15549 | -5/Factory | Evolved 2 slots: Utility x2 15549 | -5/Factory | Identified Hacking Drone Bay 15550 | -5/Factory | Identified exit to Upper Caves 15551 | -5/Factory | Identified exit to Factory 15554 | -5/Factory | Loaded intel: 191 non-interactive machine locations 15555 | -5/Factory | Loaded intel: 24 terminal locations 15793 | -5/Factory | Crushed by falling debris 15793 | -5/Factory | System corruption reached 10% 15824 | -5/Factory | Lost 3 parts (1n2u) 16104 | -5/Factory | Build established: Sprinter 16172 | -5/Factory | Fabricated Lrn. Sensor Array (x2) 16479 | -5/Factory | Build established: Ninja 16578 | -5/Factory | Manually triggered Chute Trap 16578 | -5/Factory | Sucked down chute 16578 | -5/Factory | Entered Waste 16579 | -5/Waste | Met a frightened Derelict 16581 | -5/Waste | Spotted C-40 Crusher 16581 | -5/Waste | Spotted C-40 Crusher 16583 | -5/Waste | Spotted C-40 Crusher 16590 | -5/Waste | Spotted C-40 Crusher 16591 | -5/Waste | Spotted C-40 Crusher 16610 | -5/Waste | Spotted C-40 Crusher 16633 | -5/Waste | Warlord forces began an assault 16649 | -5/Waste | Allies destroyed C-40 Crusher 16654 | -5/Waste | Allies destroyed C-40 Crusher 16657 | -5/Waste | Allies destroyed C-40 Crusher 16660 | -5/Waste | Allies destroyed C-40 Crusher 16667 | -5/Waste | Allies destroyed C-40 Crusher 16672 | -5/Waste | Allies destroyed C-40 Crusher 16701 | -5/Waste | Lost 6 allies 16719 | -5/Waste | Found Broken Imp. Powered Armor 16737 | -5/Waste | Discovered new exit (range 10) 16742 | -5/Waste | Identified exit to Factory 16771 | -5/Waste | Entered Factory 16771 | -5/Factory | Accompanied by 13 allies 16815 | -5/Factory | Loaded intel: 8 recycling unit locations 16839 | -5/Factory | Learned location of Protoforge (-2) 16915 | -5/Factory | Discovered exit to Factory (range 21) 17143 | -5/Factory | Discovered exit to Upper Caves (range 11) 17286 | -5/Factory | Entered Upper Caves 17308 | -5/Upper Caves | Lost 3 parts (1p2u) 17498 | -5/Upper Caves | Discovered new exit (range 8) 17500 | -5/Upper Caves | Identified exit to Upper Caves 17511 | -5/Upper Caves | Learned location of 2 exits from Factory 17571 | -5/Upper Caves | Entered another Upper Caves area 17576 | -5/Upper Caves | Learned Factory emergency access door positions 17779 | -5/Upper Caves | Lost 3 parts (1p1n1u) 17820 | -5/Upper Caves | Attracted the attention of an 0b10 checkpoint 17877 | -5/Upper Caves | Lost 3 parts (2n1u) 17923 | -5/Upper Caves | Discovered new exit (range 8) 17928 | -5/Upper Caves | Identified exit to Warlord 17969 | -5/Upper Caves | Entered Warlord 17986 | -5/Warlord | System corruption cleaned by Quarantine Array 18159 | -5/Warlord | Rebuked by Warlord 18184 | -5/Warlord | Warlord's base attacked by MAIN.C 18201 | -5/Warlord | Found Prototype Piercing Weapon 18201 | -5/Warlord | Identified Vortex Lance 18204 | -5/Warlord | Found Vortex Lance 18209 | -5/Warlord | Found Prototype Launcher 18412 | -5/Warlord | Found Prototype Processor 18412 | -5/Warlord | Identified Exp. Target Analyzer 18423 | -5/Warlord | Found Prototype Device 18423 | -5/Warlord | Identified Exp. Focal Shield 18433 | -5/Warlord | Found Exp. Targeting Computer 18461 | -5/Warlord | Identified Vortex Catalyst Activator 18485 | -5/Warlord | Warlord forces counterattacked 18519 | -5/Warlord | Spotted B-86 Titan 18520 | -5/Warlord | Spotted B-75 Beast 18525 | -5/Warlord | Destroyed B-86 Titan 18538 | -5/Warlord | Spotted Striker 18546 | -5/Warlord | Destroyed 9 combat bots 18624 | -5/Warlord | Lost 10 allies 18651 | -5/Warlord | Found Prototype Reactor 18681 | -5/Warlord | Spotted Executioner 18683 | -5/Warlord | Spotted Executioner 18691 | -5/Warlord | Spotted Executioner 18702 | -5/Warlord | Destroyed Executioner 18710 | -5/Warlord | Destroyed Executioner 18726 | -5/Warlord | Lost 8 allies 18732 | -5/Warlord | Spotted Striker 18859 | -5/Warlord | Warlord base infiltrated, sounded retreat 18860 | -5/Warlord | Enhanced Grunt warped into view 18860 | -5/Warlord | Enhanced Grunt warped into view 18860 | -5/Warlord | Enhanced Grunt warped into view 18860 | -5/Warlord | Enhanced Demolisher warped into view 18860 | -5/Warlord | Enhanced Demolisher warped into view 18860 | -5/Warlord | Enhanced Demolisher warped into view 18944 | -5/Warlord | Build established: Scavenger-Gladiator 18954 | -5/Warlord | Spotted Executioner 18985 | -5/Warlord | Found Prototype Device 18985 | -5/Warlord | Identified Exp. Shock Absorption System 19013 | -5/Warlord | Spotted Striker 19022 | -5/Warlord | Discovered new exit (range 19) 19049 | -5/Warlord | Identified exit to Proximity Caves 19063 | -5/Warlord | Attacked by Warlord forces 19063 | -5/Warlord | Spotted 5Q-DO1(K) 19066 | -5/Warlord | Entered Proximity Caves 19085 | -4/Proximity Caves | Lost 9 allies 19160 | -4/Proximity Caves | Spotted B-86 Titan 19190 | -4/Proximity Caves | Core integrity fell below 50% 19195 | -4/Proximity Caves | Forged Quantum Companion 19322 | -4/Proximity Caves | Discovered exit to Factory (range 12) 19334 | -4/Proximity Caves | Entered Factory 19334 | -4/Factory | Evolved 2 slots: Power x1, Propulsion x1 19335 | -4/Factory | Identified exit to Research 19335 | -4/Factory | Identified exit to Extension 19586 | -4/Factory | Spotted B-86 Titan 19618 | -4/Factory | Discovered exit to Extension (range 12) 19641 | -4/Factory | Spotted B-86 Titan 19719 | -4/Factory | Discovered exit to Research (range 17) 19844 | -4/Factory | Loaded intel: 8 recycling unit locations 19940 | -4/Factory | Entered Extension 19956 | -4/Extension | Loaded intel: 1 recycling unit location 20101 | -4/Extension | Lost 6 parts (1p3n2u) 20184 | -4/Extension | Spotted B-86 Titan 20191 | -4/Extension | Rescued a captive Derelict 20257 | -4/Extension | Rescued a captive Derelict 20380 | -4/Extension | Rescued a captive Derelict 20381 | -4/Extension | Rescued a captive Derelict 20625 | -4/Extension | Spotted B-86 Titan 20636 | -4/Extension | Allies destroyed B-86 Titan 20654 | -4/Extension | Core integrity fell below 50% 20668 | -4/Extension | Found Hvy. Reflective Plating 20695 | -4/Extension | Lost 7 parts (2p4n1u) 20696 | -4/Extension | Lost 4 allies 20881 | -4/Extension | Rescued a captive Derelict 20983 | -4/Extension | Rescued A7 21239 | -4/Extension | Discovered exit to Research (range 10) 21240 | -4/Extension | Discovered new exit (range 6) 21280 | -4/Extension | Identified exit to Cetus 21284 | -4/Extension | Entered Cetus 21284 | -4/Cetus | Accompanied by 6 allies (A7) 21289 | -4/Cetus | Acquired a Cetus Manufacturing Module code from A7 21298 | -4/Cetus | Spotted Cetus Guard 21299 | -4/Cetus | Spotted Cetus Guard 21299 | -4/Cetus | Spotted Cetus Guard 21299 | -4/Cetus | Spotted Cetus Guard 21307 | -4/Cetus | Destroyed Cetus Guard 21320 | -4/Cetus | Allies destroyed Cetus Guard 21323 | -4/Cetus | Destroyed Cetus Guard 21406 | -4/Cetus | Started Cetus Manufacturing Module 21418 | -4/Cetus | Escorted A7 to Cetus Mainframe 21431 | -4/Cetus | Manufactured an Enhanced Grunt 21456 | -4/Cetus | Manufactured an Enhanced Grunt 21481 | -4/Cetus | Manufactured an Enhanced Grunt 21506 | -4/Cetus | Manufactured an Enhanced Grunt 21531 | -4/Cetus | Manufactured an Enhanced Grunt 21542 | -4/Cetus | Discovered new exit (range 21) 21574 | -4/Cetus | Spotted Cetus Guard 21574 | -4/Cetus | Discovered exit to Research (range 7) 21574 | -4/Cetus | Spotted Cetus Guard 21574 | -4/Cetus | Spotted Cetus Guard 21574 | -4/Cetus | Spotted Cetus Guard 21578 | -4/Cetus | Destroyed Cetus Guard 21583 | -4/Cetus | Allies destroyed Cetus Guard 21585 | -4/Cetus | Destroyed Cetus Guard 21594 | -4/Cetus | Destroyed Cetus Guard 21595 | -4/Cetus | Met Revision 17 21664 | -4/Cetus | Identified exit to Archives 21693 | -4/Cetus | Entered Archives 21693 | -4/Archives | Accompanied by 11 allies (A7) 21698 | -4/Archives | Received a hacking code to weaken MAIN.C 21712 | -4/Archives | Discovered exit to Research (range 15) 21730 | -4/Archives | Discovered new exit (range 18) 21732 | -4/Archives | Discovered new exit (range 22) 21784 | -4/Archives | Entered Hub_04(d) 21784 | -4/Hub_04(d) | Accompanied by 9 allies 22040 | -4/Hub_04(d) | Lost 3 parts (1p1n1u) 22273 | -4/Hub_04(d) | Found Prototype Device 22273 | -4/Hub_04(d) | Identified Exp. Thermal Shield 22377 | -4/Hub_04(d) | Discovered exit to Research (range 6) 22414 | -4/Hub_04(d) | Lost 3 allies 22519 | -4/Hub_04(d) | Discovered exit to Research (range 19) 22725 | -4/Hub_04(d) | Entered Research 22725 | -3/Research | Evolved 2 slots: Propulsion x2 22726 | -3/Research | Loaded intel: 23 terminal locations 22801 | -3/Research | Loaded intel: 5 recycling unit locations 22880 | -3/Research | Destroyed 7 combat bots 22925 | -3/Research | Revision forces began assault on 0b10 22971 | -3/Research | Spotted B-86 Titan 22972 | -3/Research | Met up with Revision 17++ 23019 | -3/Research | Lost 5 parts (1p2n2u) 23130 | -3/Research | Discovered new exit (range 12) 23137 | -3/Research | Identified exit to Research 23163 | -3/Research | Found Prototype Device 23163 | -3/Research | Identified Exp. EM Disruption Field 23270 | -3/Research | Found Prototype Device 23270 | -3/Research | Identified Exp. Shield Generator 23291 | -3/Research | Crushed by falling debris 23292 | -3/Research | System corruption reached 10% 23322 | -3/Research | Lost 3 parts (2n1u) 23329 | -3/Research | Identified Vortex Chain Reactor 23350 | -3/Research | Discovered new exit (range 6) 23351 | -3/Research | Identified exit to Testing 23354 | -3/Research | Entered Testing 23377 | -3/Testing | Central database locked down 23388 | -3/Testing | Found Prototype Ballistic Cannon 23388 | -3/Testing | Identified Omega Cannon 23519 | -3/Testing | Found Prototype Protection 23519 | -3/Testing | Identified Hvy. Regenerative Plating 23584 | -3/Testing | Unchained authorized (CL-0N3) 23852 | -3/Testing | U-05 Engineer reconstituted as Alpha 7 23852 | -3/Testing | Spotted Alpha 7 23966 | -3/Testing | Destroyed Alpha 7 23966 | -3/Testing | Alpha 7 reconstituted as CL-0N3 24147 | -3/Testing | P-80 Master reconstituted as Combat Programmer 24147 | -3/Testing | Spotted Combat Programmer 24154 | -3/Testing | Destroyed Combat Programmer 24154 | -3/Testing | Combat Programmer reconstituted as CL-0N3 24170 | -3/Testing | Discovered exit to Research (range 8) 24228 | -3/Testing | Entered Research 24228 | -2/Research | Evolved 2 slots: Power x1, Utility x1 24252 | -2/Research | Lost 12 parts (1p7n4u) 24374 | -2/Research | Loaded intel: 5 recycling unit locations 24440 | -2/Research | Lost 3 parts (1n1u1w) 24503 | -2/Research | Core integrity fell below 50% 24529 | -2/Research | Core integrity fell below 20% 24530 | -2/Research | Build established: Mutant 24538 | -2/Research | Destroyed by G-73 Enforcer with Phase Gun Last Messages --------------- 24517_ Vortex Lance destroyed. 24517_ Penetrated by Slug. 24517_ Slug penetrates Wall. Quantum Companion releases a shadow of itself that zips off towards G-73 Enforcer. 24518_ G-73 Enforcer destroyed. 24519_ Centrium Leg destroyed. 24519_ Y-72 Warden shuts down. 24520_ Centrium Leg destroyed. 24521_ Sneak attack on Y-72 Warden. 24521_ Y-72 Warden destroyed. 24521_ Quantum Companion surprise attacks G-73 Enforcer. Quantum Companion releases a shadow of itself that zips off towards G-73 Enforcer. 24523_ Destroyed Hvy. Laser. 24525_ Deflected attack with Quantum Companion. Quantum Companion: "Batter up!" 24529_ G-73 Enforcer destroyed. 24529_ Deflected attack with Quantum Companion. Map ----- +----------------------------------------------------+ | ?????????????????????????????????????????????????? | | ?????????????????????????????????????????????????? | | ?????????????????????????????????????????????????? | | ?????????????????????????????????????????????????? | | ?????????????????????????????????????????????????? | | ?????????????????????????????????????????????????? | | ?????????????????????????????????????????????????? | | ?????????????????????????????????????????????????? | | ??????????? "????????????????????????????????????? | | ????????????""???????????????????????????????????? | | ?????????????""??????????????????????????????????? | | ????????????? ??????????????????????????????????? | | ?????????????? ?????????????????????????????????? | | ??#############+#########+???????????????????????? | | ??? ????????????????????????? | | ??????? #?????????????????????????? | | ??????????? === #?????????????????????????? | | ??????????????? %[%[ ########??????????????????? | | ###???????????????#%%!=# #??????????????????? | | #???????????????#t%%=# #??????????????????? | | #???????????????#%*= # #??????????????????? | | #???????????????#=[= # = #??????????????????? | | #???????????????#= #[ #??????????????????? | | #???????????????# ==#[[ #??????????????????? | | #???????????????# =%[g*! #??????????????????? | | #???????????????# [%[#t@ g #??????????????????? | | #???????????????# =!#[g #??????????????????? | | ################### # #??????????????????? | | % !! # #??????????????????? | | ! # #??????????????????? | | % # #??????????????????? | | % !! ########??????????????????? | | ######### !! #?????????????????????????? | | #???????# "" "" ! #?????????????????????????? | | #???????# ""F"" #?????????????????????????? | | #???????# """ ???????????????????????? | | #???????# #??????????????????????? | | #???????# #??????????????????????? | | #???????# #??????????????????????? | | #???????#+###+######+####+#??????????????????????? | | #??????????????????? #???????????????????????????? | | #????????????????????#???????????????????????????? | | ?????????????????????????????????????????????????? | | ?????????????????????????????????????????????????? | | ?????????????????????????????????????????????????? | | ?????????????????????????????????????????????????? | | ?????????????????????????????????????????????????? | | ?????????????????????????????????????????????????? | | ?????????????????????????????????????????????????? | | ?????????????????????????????????????????????????? | +----------------------------------------------------+ Best States ------------- Heat Dissipation 81 Energy Generation 75 Energy Capacity 700 Matter Stores 300 Matter Capacity 300 Sight Range 22 Robot Scan Range 19 Terrain Scan Density 10 ECM Strength 1 Jamming Range 16 Cloak Strength 3 Power Amplification 40 Additional Mass Support 20 Corruption Containment 8 Corruption Block 20 Armor Coverage 1050 Resistance: KI 30 Resistance: TH 30 Resistance: EX 50 Weapon Shielding 66 Melee Speed Boost 20 Phase Shifting 10 Evasion (%) 70 Targeting Accuracy 12 Melee Accuracy 16 Target Analysis 10 Core Analysis 6 Armor Integrity Analysis 30 Recoil Reduction 6 Matter Filtering 30 Particle Charging 30 Salvage Targeting 3 Offensive Hacking 10 Authchip Count 1 Trap Extractor Capacity 6 Item Schematics ----------------- Hcp. Storage Unit | -10/Materials | Hacked Lrg. Storage Unit | -10/Materials | Hacked Plasma Cutter | -9/Materials | Scanalyzed CPS Tube | -6/Factory | Scanalyzed Imp. Cloaking Device | -6/Factory | Scanalyzed Lrn. Sensor Array | -6/Factory | Hacked Battle Cannon | -6/Zion | Free Beamcaster | -6/Zion | Free Hvy. Riot Gun | -6/Zion | Free Enh. Flamer | -6/Zion | Free Power Sword | -6/Zion | Archive Lance | -6/Zion | Archive Arm. Leg | -6/Zion | Archive Point Defense System | -6/Zion | Archive Coil Gun | -6/Zion | Archive Mass Driver | -6/Zion | Archive Adv. Heat Sink | -6/Zion | Archive Antimatter Reactor | -6/Zion | Archive Lgt. Antimatter Reactor | -6/Zion | Archive Imp. Heavy Armor Plating | -6/Zion | Archive Lrn. Proton Cannon | -6/Zion | Archive Drone Bay | -6/Zion | Archive Imp. Thermal Shield | -6/Zion | Archive Imp. Target Analyzer | -6/Zion | Archive Mic. Antimatter Reactor | -5/Factory | Scanalyzed ECM Suite | -5/Factory | Scanalyzed Hvy. Tesla Rifle | -3/Testing | Archive Robot Schematics ------------------ A-02 Transporter | -6/Zion | Archive M-28 Smith | -6/Zion | Archive K-01 Serf | -6/Zion | Archive G-73 Enforcer | -6/Zion | Archive A-27 Freighter | -3/Testing | Archive Fabricated ------------ Lrn. Sensor Array | x2 | -6/Factory Lrn. Sensor Array | x2 | -5/Factory | Authchip Repaired ---------- Imp. Cloaking Device | 17% | -6/Factory | Broken Studied --------- Lgt. Treads | -9/Materials | Hacked Rocket Launcher | -9/Materials | Hacked Mni. Grenade Launcher | -9/Materials | Hacked Hvy. Hammer | -9/Materials | Hacked Nuclear Pulse Thruster | -6/Factory | Hacked Lgt. Angular Momentum Engine | -5/Factory | Hacked Nuclear Pulse Array | -5/Factory | Hacked Field Propulsion Drive | -5/Factory | Hacked Cmb. Gravmag System | -4/Factory | Hacked Linear Gravjet | -4/Factory | Hacked Cmb. Antigrav System | -3/Testing | Hacked Alien Tech Used ----------------- None Achievements -------------- None Challenges ------------ None Game ------ Seed CloakingTeslaRail Manual? 0 Play Time 03:19:48 Cumulative 562.7 hours Start 2025.11.13 @ 23:15:59 End 2025.11.14 @ 04:21:07 Sessions 1 Manual Loads 0 Difficulty Rogue Special Mode None Game No. 299 Rogue 299 Adventurer 0 Explorer 0 Win Type - Total 27 Types 14/2/7/1/0/0/0/1/1/1 Lore% 94 Gallery% 89 Achievement% 81 Wizard Run 0 Options --------- Layout 2 ASCII 0 Keyboard 1 Movement Vi Keybinds 0 Fullscreen 1 Font 28/Terminus Map View 50x52 Zoom Use 0% Tactical HUD 1 Map Filters NONE Filters NONE Steam 1 RUN: c0b2c689-4dff-4d68-b8eb-82aac2376507